Workbook

Sheet Popis donacija do 31.12.13
A2: GRAD KRK - IZVJEŠTAJ O DONACIJAMA UDRUGAMA I POLITIČKIM STRANKAMA IZ PRORAČUNA DO 31.12.2013.
A3: 1 | B3: 2 | C3: 3 | D3: 4 | E3: 5 | F3: 6 | G3: 7 | H3: 8 | I3: 9
A4: OIB primatelja donacije | B4: Naziv primatelja donacije /šifra PP | C4: Naziv programa ili pojedinačne donacije | D4: Godina | E4: Planirano prema programu javnih potreba iz kolone 3.-ugovor | F4: Ostvarena donacija po programu iz kolone 3. | G4: Ostale donacije prema odluci Gradonačelnika | H4: Donacija za knjigovodstvo udruga | I4: Ukupno donacija udruzi 2013
A5: 13644894582 | B5: Udruga HVIDRA, otok Krk | C5: Program za socijalno-humanitarne udruge, društva i ustanove Grada Krka | D5: 2013 | E5: 25000 | F5: 25000 | I5: =F5+G5+H5 -> 25000 | J5: =SUM(E5:E39) -> 263000
A6: 33480204219 | B6: Terapijska zajednica "Savez" | C6: Program za socijalno-humanitarne udruge, društva i ustanove Grada Krka | D6: 2013 | E6: 10000 | F6: 5000 | I6: =F6+G6+H6 -> 5000
A7: 04341489477 | B7: Udruga antifašističkih boraca Otoka Krka | C7: Program za socijalno-humanitarne udruge, društva i ustanove Grada Krka | D7: 2013 | E7: 15000 | F7: 15000 | H7: 6062.71 | I7: 21062.71
A8: 04341489477 | B8: Udruga antifašističkih boraca Grada Krka | C8: Program za socijalno-humanitarne udruge, društva i ustanove Grada Krka | D8: 2013 | E8: 10000 | F8: 10000 | I8: 10000
A9: 04341489477 | B9: Udruga antifašističkih boraca Šotovento | C9: Program za socijalno-humanitarne udruge, društva i ustanove Grada Krka | D9: 2013 | E9: 10000 | F9: 10000 | I9: 10000
A10: 87108816444 | B10: Udruga umirovljenika Grada Krka | C10: Program za socijalno-humanitarne udruge, društva i ustanove Grada Krka | D10: 2013 | E10: 30000 | F10: 30000 | G10: 14500 | H10: 3497.71 | I10: 47997.71
A11: 67753818672 | B11: Udruga umirovljenika Šotovento | C11: Program za socijalno-humanitarne udruge, društva i ustanove Grada Krka | D11: 2013 | E11: 30000 | F11: 30000 | H11: 2720.45 | I11: 32720.45
A12: 17299379476 | B12: Udruga gluhih i nagluhih | C12: Program za socijalno-humanitarne udruge, društva i ustanove Grada Krka | D12: 2013 | E12: 2000 | F12: 2000 | I12: 2000
A13: 80713734687 | B13: Udruga slijepih PGŽ Rijeka | C13: Program za socijalno-humanitarne udruge, društva i ustanove Grada Krka | D13: 2013 | E13: 2000 | F13: 2000 | I13: 2000
A14: 71954510830 | B14: Udruga osoba s mišićnom distrofijom PGŽ | C14: Program za socijalno-humanitarne udruge, društva i ustanove Grada Krka | D14: 2013 | E14: 2000 | F14: 1000 | I14: 1000
A15: 91656532246 | B15: Društvo multiple skleroze | C15: Program za socijalno-humanitarne udruge, društva i ustanove Grada Krka | D15: 2013 | G15: 1000 | I15: 1000
A16: 14235138093 | B16: Udruga roditelja poginulih branitelja | C16: Program za socijalno-humanitarne udruge, društva i ustanove Grada Krka | D16: 2013 | G16: 1000 | I16: 1000
A17: 07212991549 | B17: Hrvatsko društvo političkih zatvorenika | C17: Program za socijalno-humanitarne udruge, društva i ustanove Grada Krka | D17: 2013 | E17: 2000 | F17: 2000 | G17: 4000 | I17: 6000
A18: 49396492543 | B18: Udruga za mentalnu retardaciju | C18: Program za socijalno-humanitarne udruge, društva i ustanove Grada Krka | D18: 2013 | I18: 0
A19: 470252MB | B19: Caritas Krk | C19: Program za socijalno-humanitarne udruge, društva i ustanove Grada Krka | D19: 2013 | E19: 10000 | F19: 10000 | G19: 1000 | I19: 11000
A20: 73790034362 | B20: Kvarnerski vez | C20: Program za socijalno-humanitarne udruge, društva i ustanove Grada Krka | D20: 2013 | E20: 3000 | F20: 1500 | I20: 1500
A21: 76455622311 | B21: Udruga invalida kvarnerskih otoka | C21: Program za socijalno-humanitarne udruge, društva i ustanove Grada Krka | D21: 2013 | E21: 10000 | F21: 10000 | I21: 10000
A22: 2131200MB | B22: Udruga gradova maslina i ekstra djev masl. ulja | C22: Program za socijalno-humanitarne udruge, društva i ustanove Grada Krka | D22: 2013 | I22: 0
A23: 59764000772 | B23: Gorska služba spašavanja | C23: Program za socijalno-humanitarne udruge, društva i ustanove Grada Krka | D23: 2013 | E23: 20000 | F23: 24500 | I23: 24500
A24: 45092136734 | B24: Povijesno društvo Otoka Krka | C24: Program za socijalno-humanitarne udruge, društva i ustanove Grada Krka | D24: 2013 | G24: 5835 | H24: 3497.71 | I24: 9332.71
A25: 61916000339 | B25: Udruga za zaštitu životinja "Felix" | C25: Program za socijalno-humanitarne udruge, društva i ustanove Grada Krka | D25: 2013 | E25: 4000 | F25: 4000 | I25: 4000
A26: 68386873672 | B26: Udruga "Obitelj za mlade" | C26: Program za socijalno-humanitarne udruge, društva i ustanove Grada Krka | D26: 2013 | E26: 4000 | F26: 4000 | I26: 4000
A27: 03376156304 | B27: Udruga "Klub zdravlja Otoka Krka" | C27: Program za socijalno-humanitarne udruge, društva i ustanove Grada Krka | D27: 2013 | I27: 0
A28: 08002590MB | B28: Udruga veterana Domovinskog rata | C28: Program za socijalno-humanitarne udruge, društva i ustanove Grada Krka | D28: 2013 | E28: 15000 | F28: 15000 | G28: 5000 | H28: 6062.71 | I28: 26062.71
A29: 26889141768 | B29: Klub liječenih ovisnika otoka Krka "Gromača" | C29: Program za socijalno-humanitarne udruge, društva i ustanove Grada Krka | D29: 2013 | E29: 20000 | F29: 21569 | G29: 16000 | I29: 37569
A30: 45613787772 | B30: Nastavni zavod za javno zdravstvo | C30: Program za socijalno-humanitarne udruge, društva i ustanove Grada Krka | D30: 2013 | E30: 10000 | F30: 7500 | I30: 7500
A31: 60978973343 | B31: Zajednica talijana Krk | C31: Program za socijalno-humanitarne udruge, društva i ustanove Grada Krka | D31: 2013 | E31: 7000 | F31: 7000 | H31: 3362 | I31: 10362
A32: 11268954050 | B32: Pokret za život | C32: Program za socijalno-humanitarne udruge, društva i ustanove Grada Krka | D32: 2013 | I32: 0
A33: 67868704289 | B33: Bošnjačka nacionalna zajednica | C33: Program za socijalno-humanitarne udruge, društva i ustanove Grada Krka | D33: 2013 | E33: 3000 | F33: 3500 | I33: 3500
A34: 95951192179 | B34: Udruga za terapijsko jahanje "Moj prijatelj" Njivice | C34: Program za socijalno-humanitarne udruge, društva i ustanove Grada Krka | D34: 2013 | E34: 3000 | F34: 3000 | I34: 3000
A35: 90177203233 | B35: Udruga dijalizirnih i trasplantiranih bolesnika PGŽ | C35: Program za socijalno-humanitarne udruge, društva i ustanove Grada Krka | D35: 2013 | E35: 2000 | F35: 2000 | I35: 2000
A36: 10640645408 | B36: Udruga civilnih invalida rata PGŽ, Rijeka/01000639006 | C36: Program za socijalno-humanitarne udruge, društva i ustanove Grada Krka | D36: 2013 | E36: 1000 | F36: 1000 | I36: 1000
A37: 86184894442 | B37: Udruga za promicanje zdravog načina života "LIVE WITH NATURE" Skrbčići | C37: Program za socijalno-humanitarne udruge, društva i ustanove Grada Krka | D37: 2013 | H37: 2720.45 | I37: 2720.45
A38: 08002314RB | B38: Udruga "Grad nag Gori" Batomalj | C38: Program za socijalno-humanitarne udruge, društva i ustanove Grada Krka | D38: 2013 | E38: 10000 | F38: 10000 | I38: 10000
A39: 48646835982 | B39: Udruga osoba opreriranih dojki "Nada" | C39: Program za socijalno-humanitarne udruge, društva i ustanove Grada Krka | D39: 2013 | E39: 3000 | F39: 1500 | G39: 1000 | I39: 2500
A40: 05478483564 | B40: Jedriličarski klub "Plav" | C40: Program sporta | D40: 2013 | E40: 80000 | F40: 80000 | H40: 3886.36 | I40: 83886.36 | J40: =SUM(E40:E64) -> 992000
A41: 36756573211 | B41: Judo klub Krk | C41: Program sporta | D41: 2013 | E41: 65000 | F41: 65000 | G41: 1500 | H41: 3886.36 | I41: 70386.36
A42: 03533054678 | B42: Nogometni klub Krk | C42: Program sporta | D42: 2013 | E42: 390000 | F42: 390000 | G42: 17000 | H42: 2502 | I42: 409502
A43: 86232456623 | B43: Boćarski klub Krk | C43: Program sporta | D43: 2013 | E43: 45000 | F43: 45000 | G43: 2000 | H43: 2720.45 | I43: 49720.45
A44: 45131977269 | B44: Košarkaški klub Krk | C44: Program sporta | D44: 2013 | E44: 160000 | F44: 150000 | H44: 5013.4 | I44: 155013.4
A45: 08000507MB | B45: Boćarski klub Brzac | C45: Program sporta | D45: 2013 | E45: 45000 | F45: 45000 | H45: 3886.36 | I45: 48886.36
A46: 96996266947 | B46: Atletski klub | C46: Program sporta | D46: 2013 | E46: 35000 | F46: 35000 | G46: 13500 | H46: 3362 | I46: 51862
A47: 53091120284 | B47: Odbojkaški klub Krk | C47: Program sporta | D47: 2013 | H47: 1943.18 | I47: 1943.18
A48: 76916108498 | B48: Malonogometni klub krk | C48: Program sporta | D48: 2013 | E48: 12000 | F48: 12000 | H48: 3792 | I48: 15792
A49: 93867450122 | B49: Ženski rukometni klub Krk | C49: Program sporta | D49: 2013 | H49: 1943.18 | I49: 1943.18
A50: 26187625353 | B50: ŠRD "Glavoč" Linardići | C50: Program sporta | D50: 2013 | H50: 3362 | I50: 3362
A51: 91785441723 | B51: Klub za športski ribolov "Sv. Fuska" Linardići | C51: Program sporta | D51: 2013 | E51: 5000 | F51: 5000 | H51: 2720.45 | I51: 7720.45
A52: 98470469935 | B52: Š.R.D. "Čavlena", Poljica | C52: Program sporta | D52: 2013 | E52: 5000 | F52: 5000 | H52: 2720.45 | I52: 7720.45
A53: 3010199207 | B53: Š.R.D. Lovrata | C53: Program sporta | D53: 2013 | E53: 40000 | F53: 40000 | G53: 88000 | H53: 3886.36 | I53: 131886.36
A54: 21584915136 | B54: Š.R.D. "Poteljan" - Brzac | C54: Program sporta | D54: 2013 | E54: 5000 | F54: 5000 | H54: 2720.45 | I54: 7720.45
A55: 09329462921 | B55: K.P.A. "Bios I" | C55: Program sporta | D55: 2013 | E55: 5000 | F55: 5000 | H55: 2720.45 | I55: 7720.45
A56: 34791402277 | B56: U.Š.R. "Pepice", Krk | C56: Program sporta | D56: 2013 | H56: 2720.45 | I56: 2720.45
A57: 30112731589 | B57: Streljački klub "Bodulka", Krk | C57: Program sporta | D57: 2013 | E57: 15000 | F57: 15000 | I57: 15000
A58: 22800276467 | B58: Karate klub "Krk", Krk | C58: Program sporta | D58: 2013 | E58: 20000 | F58: 20000 | G58: 4000 | H58: 3886.36 | I58: 27886.36
A59: 61154651100 | B59: Body building klub, Krk | C59: Program sporta | D59: 2013 | H59: 3886.36 | I59: 3886.36
A60: 6132389853 | B60: Golf klub, Krk | C60: Program sporta | D60: 2013 | H60: 1943.18 | I60: 1943.18
A61: 62150220652 | B61: Streličarski klub Maura Kal, Krk | C61: Program sporta | D61: 2013 | E61: 35000 | F61: 35000 | H61: 2720.45 | I61: 37720.45
A62: 78472729020 | B62: Brdsko biciklistički klub, Krk | C62: Program sporta | D62: 2013 | E62: 10000 | F62: 10000 | H62: 2720.45 | I62: 12720.45
A63: 12308261479 | B63: Wakeboard klub , Krk | C63: Program sporta | D63: 2013 | E63: 15000 | F63: 15000 | I63: 15000
A64: 51467769782 | B64: STK Malinska-Dubašnica, Malinska | C64: Program sporta | D64: 2013 | E64: 5000 | F64: 5000 | G64: 2000 | I64: 7000
A65: 43320920196 | B65: D.P.Z. zbor "Mići boduli" | C65: Program javnih potreba u kulturi | D65: 2013 | E65: 70000 | F65: 70000 | H65: 3497.71 | I65: 73497.71 | J65: =SUM(E65:E79) -> 272000
A66: 75741049188 | B66: Gradska limena glazba Krk | C66: Program javnih potreba u kulturi | D66: 2013 | E66: 56000 | F66: 56000 | G66: 8000 | H66: 3497.71 | I66: 67497.71
A67: 50403072234 | B67: Gradski pjevački zbor - Krk | C67: Program javnih potreba u kulturi | D67: 2013 | E67: 25000 | F67: 12500 | H67: 2720.45 | I67: 15220.45
A68: 46553375003 | B68: Katedra čakavskog sabora - Kornić | C68: Program javnih potreba u kulturi | D68: 2013 | E68: 22000 | F68: 22000 | G68: 3000 | H68: 1943.18 | I68: 26943.18
A69: 02948679852 | B69: K.U.D. Vrh | C69: Program javnih potreba u kulturi | D69: 2013 | E69: 20000 | F69: 20000 | G69: 1700 | H69: 2720.45 | I69: 24420.45
A70: 12405095116 | B70: Kulturno društvo Kornić | C70: Program javnih potreba u kulturi | D70: 2013 | E70: 20000 | F70: 20000 | H70: 2720.45 | I70: =F70+G70+H70 -> 22720.45
A71: 17069296058 | B71: Folklorno društvo Poljica | C71: Program javnih potreba u kulturi | D71: 2013 | E71: 15000 | F71: 15000 | H71: 2720.45 | I71: 17720.45
A72: 77259416962 | B72: Plesna udruga Krk - Osjeti ritam Pinezići | C72: Program javnih potreba u kulturi | D72: 2013 | E72: 10000 | F72: 10000 | H72: 3362 | I72: 13362
A73: 86856424924 | B73: Multimedijalna udruga Krčka beseda Krk | C73: Program javnih potreba u kulturi | D73: 2013 | E73: 5000 | F73: 5000 | G73: 2000 | I73: 7000
A74: 59820641676 | B74: Plesna udruga Krk - ritmika | C74: Program javnih potreba u kulturi | D74: 2013 | I74: 0
A75: 49825618301 | B75: Pontes - Krk | C75: Program javnih potreba u kulturi | D75: 2013 | I75: 0
A76: 1120743MB | B76: Glazbena škola Mirković - Lovran | C76: Program javnih potreba u kulturi | D76: 2013 | E76: 2000 | I76: 0
A77: 66601934965 | B77: Plesna skupina Monfrina - Krk | C77: Program javnih potreba u kulturi | D77: 2013 | E77: 13000 | F77: 13000 | H77: 3362 | I77: 16362
A78: 01051197257 | B78: D.P.S. Povero Keko - Krk | C78: Program javnih potreba u kulturi | D78: 2013 | E78: 8000 | F78: 8000 | G78: 3000 | H78: 1943.18 | I78: 12943.18
A79: 04345582762 | B79: Udruga sopaca otoka Krka | C79: Program javnih potreba u kulturi | D79: 2013 | E79: 6000 | F79: 6000 | H79: 3497.71 | I79: 9497.71
A80: 12016859209 | B80: Udruga Knezovi krčki Frankopan | C80: Program javnih potreba u kulturi | D80: 2013 | E80: 15000 | F80: 15000 | H80: 3362 | I80: 18362
A81: 77635713545 | B81: Otvoreno kazalište Omišalj | C81: Program javnih potreba u kulturi | D81: 2013 | E81: 4000 | F81: 4000 | I81: 4000
A82: 21349394661 | B82: Demo udruga bendova Grada Krka | C82: Program kulture | D82: 2013 | E82: 10000 | F82: 12500 | G82: 10040 | I82: 22540
A83: 91438028726 | B83: Udruga Zlatni otok pjeva, Krk | C83: Program kulture | D83: 2013 | E83: 15000 | F83: 15000 | G83: 5000 | H83: 3886.36 | I83: 23886.36
A84: 43969737679 | B84: KUL-kulturno umjetnički laborator | C84: Program kulture | D84: 2013 | H84: 3362 | I84: 3362
A85: 23708870261 | B85: Šahovski klub - Krk | C85: Program javnih potreba u tehničkoj kulturi | D85: 2013 | E85: 47000 | F85: 47000 | G85: 3000 | H85: 3497.71 | I85: 53497.71
A86: 60024777398 | B86: Informatički klub - Krk KIOK 905 | C86: Program javnih potreba u tehničkoj kulturi | D86: 2013 | E86: 25000 | F86: 18750 | G86: 3000 | H86: 3886.36 | I86: 25636.36
A87: 92972369942 | B87: Planinarsko društvo Obzova Njivice | C87: Program javnih potreba u tehničkoj kulturi | D87: 2013 | E87: 10000 | F87: 10000 | I87: 10000
A88: 92942299310 | B88: Veslački klub "Glagoljaš" - Omišalj | C88: Program javnih potreba u tehničkoj kulturi | D88: 2013 | E88: 5000 | F88: 5000 | I88: 5000
A89: 40771840841 | B89: Streljački klub "Dub", Malinska | C89: Program javnih potreba u tehničkoj kulturi | D89: 2013 | E89: 5000 | F89: 2500 | I89: 2500
A90: 72556929505 | B90: Foto klub Krk | C90: Program javnih potreba u tehničkoj kulturi | D90: 2013 | E90: 5000 | F90: 5000 | G90: 3000 | H90: 3362 | I90: 11362
A91: 57026135581 | B91: Filatelističkodruštvo Krk | C91: Program javnih potreba u tehničkoj kulturi | D91: 2013 | E91: 10000 | F91: 10000 | I91: 10000
A92: 17305749299 | B92: Auto klub Krk | C92: Program javnih potreba u tehničkoj kulturi | D92: 2013 | E92: 30000 | F92: 30000 | G92: 21750 | H92: 10415.45 | I92: 62165.45
A93: 91063173829 | B93: Moto klub Griffons Krk | C93: Program javnih potreba u tehničkoj kulturi | D93: 2013 | E93: 3000 | F93: 3000 | H93: 2720.45 | I93: 5720.45
A94: 55275281568 | B94: Građanska inicijativa otoka Krka | C94: Program građanskih inicijativa otoka Krka | D94: 2013 | H94: 3362 | I94: 3362
A95: 67421370315 | B95: Lovačko društvo "Kamenjarka" | C95: Program javnih potreba u poljoprivredi | D95: 2013 | E95: 10000 | F95: 10000 | G95: 15687.5 | I95: 25687.5
A96: 89342153826 | B96: Lovačko društvo "Šljuka" - Krk | C96: Program javnih potreba u poljoprivredi | D96: 2013 | E96: 10000 | F96: 10000 | I96: 10000
A97: 46632693146 | B97: Udruga ovčara "Ponikva" - Krk | C97: Program javnih potreba u poljoprivredi | D97: 2013 | E97: 15000 | F97: 15000 | G97: 2000 | H97: 2720.45 | I97: 19720.45
A98: 50206656419 | B98: Udruga maslinara "Drobnica" - Krk | C98: Program javnih potreba u poljoprivredi | D98: 2013 | E98: 100000 | F98: 87038.8 | G98: 4131.42 | H98: 3362 | I98: 94532.22
A99: 82907571905 | B99: Udruga vinara otoka Krka "Bukaleta" | C99: Program javnih potreba u poljoprivredi | D99: 2013 | E99: 10000 | F99: 10000 | G99: 1000 | H99: 3362 | I99: 14362
A100: 76318722399 | B100: Udruga pčelara "Kadulja" otoka Krka | C100: Program javnih potreba u poljoprivredi | D100: 2013 | E100: 5000 | F100: 5000 | H100: 3886.36 | I100: 8886.36
A101: 72240714022 | B101: Društvo krčana i prijatelja otoka Krka, Zagreb | C101: Građanske inicijative | D101: 2013 | I101: 0
A102: 04150008463 | B102: Hrvatska demokratska zajednica -HDZ | C102: Odluka o sredstvima za političke stranke Grada Krka | D102: 2013 | E102: 14000 | F102: 14000 | I102: 14000
A103: 82435880635 | B103: Hrvatska narodna stranka -HNS | C103: Odluka o sredstvima za političke stranke Grada Krka | D103: 2013 | E103: 14000 | F103: 14000 | I103: 14000
A104: 02010978731 | B104: Socijal -demokratska partija SDP | C104: Odluka o sredstvima za političke stranke Grada Krka | D104: 2013 | E104: 17850 | F104: 17850 | I104: 17850
A105: 08692235081 | B105: Hrvatska socijalnoliberalna stranka HSLS | C105: Odluka o sredstvima za političke stranke Grada Krka | D105: 2013 | E105: 7000 | F105: 7000 | I105: 7000
A106: 55966591250 | B106: Volarić Svjetlana nezavisna lista | C106: Odluka o sredstvima za političke stranke Grada Krka | D106: 2013 | E106: 3500 | F106: 3500 | I106: 3500
A107: 56890881647 | B107: Hrvatska seljačka stranka - HSS | C107: Odluka o sredstvima za političke stranke Grada Krka | D107: 2013 | E107: 3500 | F107: 3500 | I107: 3500
B108: Zelena stranka | C108: Odluka o sredstvima za političke stranke Grada Krka | D108: 2013 | E108: 3850 | F108: 3850 | I108: 3850
A109: 97439500228 | B109: Nezavisna lista David Mrakovčić | C109: Odluka o sredstvima za političke stranke Grada Krka | D109: 2013 | E109: 7000 | F109: 7000 | I109: 7000
A110: 41495097026 | B110: Primorsko goranski savez - PGS | C110: Odluka o sredstvima za političke stranke Grada Krka | D110: 2013 | E110: 35700 | F110: 35700 | I110: 35700
A111: 20565122166 | B111: Moto udruga policajaca "Plavi vitezovi-Croatia VI" Rijeka | C111: Hum.akcija Toy run | D111: 2013 | G111: 1500 | I111: 1500
B112: Škola stvaralaštva Novigradsko proljeće | C112: kotizacija | D112: 2013 | G112: 400 | I112: 400
A113: 77600514446 | B113: Lag-Bjeloglavi sup | D113: 2013 | G113: 1500 | H113: 3010 | I113: 4510
B114: Znanstveno edukacijski centar Višnjan | C114: Ljetna radionica | D114: 2013 | G114: 2000 | I114: 2000
A115: 20792124114 | B115: Udruga rat.vet. Hrvatski domobran -ogr- Rijeka | D115: 2013 | I115: 0
A116: 71693540901 | B116: Katedra Čakavsko sabora grobnišćine | C116: Grobnička skala | D116: 2013 | G116: 5000 | I116: 5000
A117: 48870180472 | B117: Zajednica udruga Hvidr-a | D117: 2013 | G117: 1000 | I117: 1000
B118: Poljoprivredna zadruga Krk | D118: 2013 | G118: 1400 | H118: 3362 | I118: 4762
A119: 19408676097 | B119: Šahovski klub - Draga | C119: Turnir | D119: 2013 | G119: 6000 | I119: 6000
B120: Samostan benediktinki | C120: Uređenje samostana | D120: 2013 | G120: 50000 | I120: 50000
A121: 60334254350 | B121: Područna vatrogasna zajednica otoka Krka-za DVD Krk | C121: Sporazum o sufinanc. | D121: 2013 | G121: 410000 | I121: 410000
A122: 94628083920 | B122: Dobrovoljno vatrogasno društvo Krk | D122: 2013 | H122: 5013.4 | I122: 5013.4
A123: 47575424716 | B123: Forum krčke mladeži | D123: 2013 | H123: 3362 | I123: 3362
A124: 55885214724 | B124: Folklorno društvo Skrpčić -Pinezić | D124: 2013 | H124: 1943.18 | I124: 1943.18
A125: 85079860748 | B125: KUD Domaći iz vatre Krk | D125: 2013 | H125: 3362 | I125: 3362
A126: 06199677038 | B126: Motoristički klub Indians MC Croatia | D126: 2013 | H126: 3362 | I126: 3362
A127: 05610544556 | B127: H.U. Svi za jednoga jedan za sve Krk | D127: 2013 | H127: 3362 | I127: 3362
B128: Srpska nacionalna manjina | D128: 2013 | E128: 10000 | F128: 10000 | I128: 10000
A129: 07103881876 | B129: Centar za brdsko planinsku poljoprivredu-ustanova | D129: 2013 | G129: 132408 | I129: 132408
A130: 31501920607 | B130: Crveni križ Krk | C130: Proračun grada za 2013- zakonska obveza | D130: 2013 | E130: 120000 | F130: 120000 | G130: 9750 | I130: =F130+G130+H130 -> 129750
B131: Franjevački samostan Košljun | D131: 2013 | G131: 3000 | I131: 3000
B132: Župa uznesenja B.D.Marije Omišalj | C132: Izdav.knjige | D132: 2013 | G132: 4000 | I132: 4000
A133: 28645559315 | B133: Udruga invalida rada Rijeka | D133: 2013 | G133: 1000 | I133: =F133+G133+H133 -> 1000
A134: 12632735476 | B134: Udruga specijalne policije "Ajkula" | C134: Obljetnica | D134: 2013 | G134: 1000 | I134: 1000
B135: Društvo "Naša djeca" Mali Lošinj | C135: skuplj.otpada | D135: 2013 | G135: 1000 | I135: 1000
B136: Centar za rehabilitaciju "Fortica" | C136: Manifestacija 3. Drž susret MAT | D136: 2013 | G136: 1000 | I136: 1000
A137: 10693338236 | B137: Spirit Udruga građana | C137: Man. Uhvati film | D137: 2013 | G137: 1000 | I137: 1000
B138: Pašić Dino | C138: Nagrada sportašu | D138: 2013 | G138: 5000 | I138: 5000
B139: Danijel Duda | C139: Drž.šah.prvenst. | D139: 2013 | G139: 1000 | I139: 1000
A140: 04647134362 | B140: Udruga Livingstone | C140: Izložba Hrv.prim.u Krku | D140: 2013 | G140: 5000 | I140: 5000
B141: Mrezze- udruga za kult. suradnju zemalja u regiji | C141: "Mala škola brodogradnje | D141: 2013 | G141: 5000 | I141: 5000
A142: 79266409197 | B142: Društvo za ceste Via-Vita | C142: monograf.Ceste Pgž | D142: 2013 | G142: 1000 | I142: 1000
A143: 07765590117 | B143: Košarkaški savez PGŽ | C143: koš.kamp | D143: 2013 | G143: 1000 | I143: 1000
A144: 11546411511 | B144: Udruga Ti si OK | C144: pokloni učen. | D144: 2013 | G144: 2040 | I144: 2040
A145: 08518185845 | B145: OTK Willys Bistra (za MK Bistra) | C145: nastup D.Špoljara | D145: 2013 | G145: 2250 | I145: 2250
A146: 90806197014 | B146: Klub za športski ribolov na moru "Big OM" Omišalj | C146: Big game fishing | D146: 2013 | G146: 2000 | I146: 2000
A147: 08001469 | B147: Karnevalska udruga "Povero Keko" | D147: 2013 | H147: 3362 | I147: 3362
A148: 83149865195 | B148: Lovačko društvo Orebica | C148: Spor.o sufin. Adaptacije | D148: 2013 | G148: 17000
A149: 34876825002 | B149: Zrakoplovni klub otoka Krka | D149: 2013 | G149: 2000 | I149: 2000
E150: =SUM(E5:E149) -> 2097400 | F150: =SUM(F5:F149) -> 2048757.8 | G150: 939891.92 | H150: 210175.45 | I150: =SUM(I5:I149) -> 3181825.17
A153: *Ukupno knjiženo na kontima 381 tekuće donacije 3.310.899,39 kn i 382 kapitalne donacije 601.581,25 kn od čega je 3.181.825,12 kn plaćeno neprofitnim udrugama a 730.655,47 dobavljačima prema izdanom računu, ustanovama i sl. prema odluci Gradonačelnika, sporazumu, ugovoru (nije na popisu)

Sheet Popis donacija do 31.12.14.
A1: GRAD KRK - IZVJEŠTAJ O DONACIJAMA UDRUGAMA I POLITIČKIM STRANKAMA IZ PRORAČUNA DO 31.12.2014.
A2: 1 | B2: 2 | C2: 3 | D2: 4 | E2: 5 | F2: 6 | G2: 7 | H2: 9
A3: OIB primatelja donacije | B3: Naziv primatelja donacije /šifra PP | C3: Naziv programa ili pojedinačne donacije | D3: Godina | E3: Planirano prema programu javnih potreba iz kolone 3.-ugovor | F3: Ostvarena donacija po programu iz kolone 3. | G3: Ostale donacije prema odluci Gradonačelnika | H3: Ukupno donacija udruzi 2014
A4: 13644894582 | B4: Udruga HVIDRA, otok Krk | C4: Program za socijalno-humanitarne udruge, društva i ustanove Grada Krka | D4: 2014 | E4: 25000 | F4: 25000 | H4: =SUM(F4:G4) -> 25000
A5: 33480204219 | B5: Terapijska zajednica "Savez" | C5: Program za socijalno-humanitarne udruge, društva i ustanove Grada Krka | D5: 2014 | E5: 10000 | F5: 10000 | H5: =SUM(F5:G5) -> 10000
A6: 04341489477 | B6: Udruga antifašističkih boraca Otoka Krka | C6: Program za socijalno-humanitarne udruge, društva i ustanove Grada Krka | D6: 2014 | E6: 15000 | F6: 15000 | G6: 7338.68 | H6: 22338.68
A7: 04341489477 | B7: Udruga antifašističkih boraca Grada Krka | C7: Program za socijalno-humanitarne udruge, društva i ustanove Grada Krka | D7: 2014 | E7: 10000 | F7: 10000 | H7: 10000
A8: 04341489477 | B8: Udruga antifašističkih boraca Šotovento | C8: Program za socijalno-humanitarne udruge, društva i ustanove Grada Krka | D8: 2014 | E8: 10000 | F8: 10000 | H8: 10000
A9: 87108816444 | B9: Udruga umirovljenika Grada Krka | C9: Program za socijalno-humanitarne udruge, društva i ustanove Grada Krka | D9: 2014 | E9: 30000 | F9: 30000 | G9: 18261.02 | H9: 48261.02
A10: 67753818672 | B10: Udruga umirovljenika Šotovento | C10: Program za socijalno-humanitarne udruge, društva i ustanove Grada Krka | D10: 2014 | E10: 30000 | F10: 27000 | G10: 16414.49 | H10: 43414.49
A11: 17299379476 | B11: Udruga gluhih i nagluhih | C11: Program za socijalno-humanitarne udruge, društva i ustanove Grada Krka | D11: 2014 | E11: 2000 | H11: 0
A12: 80713734687 | B12: Udruga slijepih PGŽ Rijeka | C12: Program za socijalno-humanitarne udruge, društva i ustanove Grada Krka | D12: 2014 | E12: 2000 | F12: 2000 | H12: 2000
A13: 71954510830 | B13: Udruga osoba s mišićnom distrofijom PGŽ | C13: Program za socijalno-humanitarne udruge, društva i ustanove Grada Krka | D13: 2014 | E13: 2000 | F13: 2000 | H13: 2000
A14: 91656532246 | B14: Društvo multiple skleroze | C14: Program za socijalno-humanitarne udruge, društva i ustanove Grada Krka | D14: 2014 | E14: 2000 | F14: 2000 | H14: 2000
A15: 07212991549 | B15: Hrvatsko društvo političkih zatvorenika | C15: Program za socijalno-humanitarne udruge, društva i ustanove Grada Krka | D15: 2014 | E15: 2000 | H15: 0
A16: 470252MB | B16: Caritas Krk | C16: Program za socijalno-humanitarne udruge, društva i ustanove Grada Krka | D16: 2014 | E16: 10000 | H16: 0
A17: 73790034362 | B17: Kvarnerski vez | C17: Program za socijalno-humanitarne udruge, društva i ustanove Grada Krka | D17: 2014 | E17: 3000 | H17: 0
A18: 76455622311 | B18: Udruga invalida kvarnerskih otoka | C18: Program za socijalno-humanitarne udruge, društva i ustanove Grada Krka | D18: 2014 | E18: 10000 | F18: 10000 | H18: 10000
A19: 59764000772 | B19: Gorska služba spašavanja | C19: Program za socijalno-humanitarne udruge, društva i ustanove Grada Krka | D19: 2014 | E19: 20000 | F19: 20000 | H19: 20000
A20: 45092136734 | B20: Povijesno društvo Otoka Krka | C20: Program za socijalno-humanitarne udruge, društva i ustanove Grada Krka | D20: 2014 | E20: 5000 | F20: 5000 | H20: 5000
A21: 61916000339 | B21: Udruga za zaštitu životinja "Felix" | C21: Program za socijalno-humanitarne udruge, društva i ustanove Grada Krka | D21: 2014 | E21: 4000 | F21: 3000 | H21: 3000
A22: 68386873672 | B22: Udruga "Obitelj za mlade" | C22: Program za socijalno-humanitarne udruge, društva i ustanove Grada Krka | D22: 2014 | E22: 4000 | F22: 4000 | H22: 4000
A23: 08002590MB | B23: Udruga veterana Domovinskog rata | C23: Program za socijalno-humanitarne udruge, društva i ustanove Grada Krka | D23: 2014 | E23: 15000 | F23: 15000 | G23: 5000 | H23: 20000
A24: 26889141768 | B24: Klub liječenih ovisnika otoka Krka "Gromača" | C24: Program za socijalno-humanitarne udruge, društva i ustanove Grada Krka | D24: 2014 | E24: 20000 | F24: 20000 | H24: 20000
A25: 45613787772 | B25: Nastavni zavod za javno zdravstvo | C25: Program za socijalno-humanitarne udruge, društva i ustanove Grada Krka | D25: 2014 | E25: 10000 | F25: 10000 | H25: 10000
A26: 60978973343 | B26: Zajednica talijana Krk | C26: Program za socijalno-humanitarne udruge, društva i ustanove Grada Krka | D26: 2014 | E26: 7000 | F26: 7000 | H26: 7000
A27: 11268954050 | B27: Pokret za život | C27: Program za socijalno-humanitarne udruge, društva i ustanove Grada Krka | D27: 2014 | E27: 3000 | F27: 3000 | H27: 3000
A28: 95951192179 | B28: Udruga za terapijsko jahanje "Moj prijatelj" Njivice | C28: Program za socijalno-humanitarne udruge, društva i ustanove Grada Krka | D28: 2014 | E28: 3000 | F28: 3000 | H28: 3000
A29: 10640645408 | B29: Udruga civilnih invalida rata PGŽ, Rijeka/01000639006 | C29: Program za socijalno-humanitarne udruge, društva i ustanove Grada Krka | D29: 2014 | E29: 1000 | F29: 1000 | H29: 1000
A30: 08002314RB | B30: Udruga "Grad nag Gori" Batomalj | C30: Program za socijalno-humanitarne udruge, društva i ustanove Grada Krka | D30: 2014 | E30: 10000 | F30: 6000 | H30: 6000
A31: 28645559315 | B31: Udruga invalida rada grada Rijeke | C31: Program za socijalno-humanitarne udruge, društva i ustanove Grada Krka | D31: 2014 | E31: 1000 | F31: 1000 | H31: 1000
B32: Hrvatsko društvo političkih zatvorenika - podružnica Rijeka | C32: Program za socijalno-humanitarne udruge, društva i ustanove Grada Krka | D32: 2014 | E32: 2000 | H32: =SUM(F32:G32) -> 0
A33: 48646835982 | B33: Udruga osoba opreriranih dojki "Nada" | C33: Program za socijalno-humanitarne udruge, društva i ustanove Grada Krka | D33: 2014 | G33: 2000 | H33: 2000
A34: 05478483564 | B34: Jedriličarski klub "Plav" | C34: Program sporta | D34: 2014 | E34: 80000 | F34: 80000 | G34: 675 | H34: 80675
A35: 36756573211 | B35: Judo klub Krk | C35: Program sporta | D35: 2014 | E35: 65000 | F35: 65000 | G35: 6550 | H35: 71550
A36: 03533054678 | B36: Nogometni klub Krk | C36: Program sporta | D36: 2014 | E36: 390000 | F36: 390000 | G36: 12050 | H36: 402050
A37: 86232456623 | B37: Boćarski klub Krk | C37: Program sporta | D37: 2014 | E37: 40000 | F37: 40000 | G37: 1000 | H37: 41000
A38: 45131977269 | B38: Košarkaški klub Krk | C38: Program sporta | D38: 2014 | E38: 160000 | F38: 160000 | G38: 2850 | H38: 162850
A39: 08000507MB | B39: Boćarski klub Brzac | C39: Program sporta | D39: 2014 | E39: 50000 | F39: 50000 | G39: 5000 | H39: 55000
A40: 96996266947 | B40: Atletski klub | C40: Program sporta | D40: 2014 | E40: 35000 | F40: 35000 | G40: 3000 | H40: 38000
A41: 76916108498 | B41: Malonogometni klub krk | C41: Program sporta | D41: 2014 | E41: 12000 | F41: 11500 | H41: 11500
A42: 26187625353 | B42: ŠRD "Glavoč" Linardići | C42: Program sporta | D42: 2014 | E42: 5000 | F42: 5000 | H42: 5000
A43: 91785441723 | B43: Klub za športski ribolov "Sv. Fuska" Linardići | C43: Program sporta | D43: 2014 | E43: 5000 | F43: 5000 | H43: 5000
A44: 98470469935 | B44: Š.R.D. "Čavlena", Poljica | C44: Program sporta | D44: 2014 | E44: 5000 | F44: 5000 | H44: 5000
A45: 3010199207 | B45: Š.R.D. Lovrata | C45: Program sporta | D45: 2014 | E45: 40000 | F45: 40000 | G45: 3000 | H45: 43000
A46: 21584915136 | B46: Š.R.D. "Poteljan" - Brzac | C46: Program sporta | D46: 2014 | E46: 5000 | F46: 5000 | H46: 5000
A47: 09329462921 | B47: K.P.A. "Bios I" | C47: Program sporta | D47: 2014 | E47: 5000 | H47: 0
A48: 34791402277 | B48: U.Š.R. "Pepice", Krk | C48: Program sporta | D48: 2014 | E48: 3800 | F48: 3800 | H48: 3800
A49: 30112731589 | B49: Streljački klub "Bodulka", Krk | C49: Program sporta | D49: 2014 | E49: 15000 | F49: 14100 | H49: 14100
A50: 22800276467 | B50: Karate klub "Krk", Krk | C50: Program sporta | D50: 2014 | E50: 25000 | F50: 25000 | G50: 2270 | H50: 27270
A51: 61154651100 | B51: Body building klub, Krk | C51: Program sporta | D51: 2014 | E51: 10000 | F51: 10000 | H51: 10000
A52: 62150220652 | B52: Streličarski klub Maura Kal, Krk | C52: Program sporta | D52: 2014 | E52: 35000 | F52: 35000 | H52: 35000
A53: 78472729020 | B53: Brdsko biciklistički klub, Krk | C53: Program sporta | D53: 2014 | E53: 10000 | F53: 10000 | G53: 200 | H53: 10200
A54: 12308261479 | B54: Wakeboard klub , Krk | C54: Program sporta | D54: 2014 | E54: 15000 | F54: 7500 | H54: 7500
A55: 51467769782 | B55: STK Malinska-Dubašnica, Malinska | C55: Program sporta | D55: 2014 | E55: 25000 | F55: 25000 | G55: 4000 | H55: 29000
A56: 43320920196 | B56: D.P.Z. zbor "Mići boduli" | C56: Program javnih potreba u kulturi | D56: 2014 | E56: 70000 | F56: 67800 | H56: 67800
A57: 75741049188 | B57: Gradska limena glazba Krk | C57: Program javnih potreba u kulturi | D57: 2014 | E57: 56000 | F57: 48600 | H57: 48600
A58: 50403072234 | B58: Gradski pjevački zbor - Krk | C58: Program javnih potreba u kulturi | D58: 2014 | E58: 20000 | F58: 1300 | H58: 1300
A59: 46553375003 | B59: Katedra čakavskog sabora - Kornić | C59: Program javnih potreba u kulturi | D59: 2014 | E59: 22000 | F59: 22000 | G59: 4500 | H59: 26500
A60: 02948679852 | B60: K.U.D. Vrh | C60: Program javnih potreba u kulturi | D60: 2014 | E60: 20000 | F60: 20000 | H60: 20000
A61: 12405095116 | B61: Kulturno društvo Kornić | C61: Program javnih potreba u kulturi | D61: 2014 | E61: 20000 | F61: 20000 | H61: 20000
A62: 17069296058 | B62: Folklorno društvo Poljica | C62: Program javnih potreba u kulturi | D62: 2014 | E62: 15000 | F62: 15000 | H62: 15000
A63: 77259416962 | B63: Plesna udruga Krk - Osjeti ritam Pinezići | C63: Program javnih potreba u kulturi | D63: 2014 | E63: 15000 | F63: 15920 | H63: 15920
A64: 86856424924 | B64: Multimedijalna udruga Krčka beseda Krk | C64: Program javnih potreba u kulturi | D64: 2014 | E64: 5000 | F64: 5000 | G64: 1000 | H64: 6000
A65: 1120743MB | B65: Glazbena škola Mirković - Lovran | C65: Program javnih potreba u kulturi | D65: 2014 | E65: 2000 | F65: 2000 | H65: 2000
A66: 66601934965 | B66: Plesna skupina Monfrina - Krk | C66: Program javnih potreba u kulturi | D66: 2014 | E66: 13000 | F66: 13000 | H66: 13000
A67: 01051197257 | B67: D.P.S. Povero Keko - Krk | C67: Program javnih potreba u kulturi | D67: 2014 | E67: 7500 | F67: 4720 | H67: 4720
A68: 04345582762 | B68: Udruga sopaca otoka Krka | C68: Program javnih potreba u kulturi | D68: 2014 | E68: 6000 | F68: 6000 | H68: 6000
A69: 12016859209 | B69: Udruga Knezovi krčki Frankopan | C69: Program javnih potreba u kulturi | D69: 2014 | E69: 15000 | F69: 15000 | H69: 15000
A70: 08001469 | B70: Karnevalska udruga "Povero Keko" | C70: Program javnih potreba u kulturi | D70: 2014 | E70: 8000 | F70: 8000 | G70: 3000 | H70: =SUM(F70:G70) -> 11000
A71: 77635713545 | B71: Otvoreno kazalište Omišalj | C71: Program javnih potreba u kulturi | D71: 2014 | E71: 4000 | F71: 4000 | H71: 4000
A72: 21349394661 | B72: Demo udruga bendova Grada Krka | C72: Program javnih potreba u kulturi | D72: 2014 | E72: 10000 | F72: 10750 | G72: 12500 | H72: =SUM(F72:G72) -> 23250
A73: 91438028726 | B73: Udruga Zlatni otok pjeva, Krk | C73: Program javnih potreba u kulturi | D73: 2014 | E73: 15000 | F73: 15000 | H73: 15000
A74: 23708870261 | B74: Šahovski klub - Krk | C74: Program javnih potreba u tehničkoj kulturi | D74: 2014 | E74: 47000 | F74: 47000 | G74: 2000 | H74: 49000
A75: 61892828068 | B75: Karting klub Krk | C75: Program javnih potreba u tehničkoj kulturi | D75: 2014 | E75: 5000 | F75: 5000 | H75: 5000
A76: 60024777398 | B76: Informatički klub - Krk KIOK 905 | C76: Program javnih potreba u tehničkoj kulturi | D76: 2014 | E76: 25000 | F76: 24300 | G76: 5000 | H76: 29300
A77: 92972369942 | B77: Planinarsko društvo Obzova Njivice | C77: Program javnih potreba u tehničkoj kulturi | D77: 2014 | E77: 10000 | F77: 10000 | G77: 5000 | H77: 15000
A78: 92942299310 | B78: Veslački klub "Glagoljaš" - Omišalj | C78: Program javnih potreba u tehničkoj kulturi | D78: 2014 | E78: 5000 | F78: 5000 | H78: 5000
A79: 40771840841 | B79: Streljački klub "Dub", Malinska | C79: Program javnih potreba u tehničkoj kulturi | D79: 2014 | E79: 5000 | F79: 5000 | H79: 5000
A80: 72556929505 | B80: Foto klub Krk | C80: Program javnih potreba u tehničkoj kulturi | D80: 2014 | E80: 5000 | F80: 4600 | H80: 4600
A81: 34876825002 | B81: Zrakoplovni klub otoka Krka | C81: Program javnih potreba u tehničkoj kulturi | D81: 2014 | E81: 5000 | F81: 2500 | H81: 2500
A82: 57026135581 | B82: Filatelističkodruštvo Krk | C82: Program javnih potreba u tehničkoj kulturi | D82: 2014 | E82: 10000 | F82: 10000 | H82: 10000
A83: 17305749299 | B83: Auto klub Krk | C83: Program javnih potreba u tehničkoj kulturi | D83: 2014 | E83: 30000 | F83: 30000 | G83: 7500 | H83: 37500
A84: 91063173829 | B84: Moto klub Griffons Krk | C84: Program javnih potreba u tehničkoj kulturi | D84: 2014 | E84: 3000 | F84: 3000 | H84: 3000
A85: 67421370315 | B85: Lovačko društvo "Kamenjarka" | C85: Program javnih potreba u poljoprivredi | D85: 2014 | E85: 10000 | F85: 10000 | H85: 10000
A86: 89342153826 | B86: Lovačko društvo "Šljuka" - Krk | C86: Program javnih potreba u poljoprivredi | D86: 2014 | E86: 10000 | F86: 10000 | H86: 10000
A87: 50206656419 | B87: Udruga maslinara "Drobnica" - Krk | C87: Program javnih potreba u poljoprivredi | D87: 2014 | E87: 70000 | F87: 29827.48 | H87: 29827.48
A88: 82907571905 | B88: Udruga vinara otoka Krka "Bukaleta" | C88: Program javnih potreba u poljoprivredi | D88: 2014 | E88: 10000 | F88: 10000 | G88: 4500 | H88: 14500
A89: 76318722399 | B89: Udruga pčelara "Kadulja" otoka Krka | C89: Program javnih potreba u poljoprivredi | D89: 2014 | E89: 5000 | F89: 5000 | H89: 5000
A90: 04150008463 | B90: Hrvatska demokratska zajednica -HDZ | C90: Odluka o sredstvima za političke stranke Grada Krka | D90: 2014 | E90: 14000 | F90: 14000 | H90: 14000
A91: 82435880635 | B91: Hrvatska narodna stranka -HNS | C91: Odluka o sredstvima za političke stranke Grada Krka | D91: 2014 | E91: 14000 | F91: 14000 | H91: 14000
A92: 02010978731 | B92: Socijal -demokratska partija SDP | C92: Odluka o sredstvima za političke stranke Grada Krka | D92: 2014 | E92: 14700 | F92: 14700 | H92: 14700
A93: 08692235081 | B93: Hrvatska socijalnoliberalna stranka HSLS | C93: Odluka o sredstvima za političke stranke Grada Krka | D93: 2014 | E93: 7000 | F93: 7000 | H93: 7000
A94: 40857015687 | B94: Zelena stranka | C94: Odluka o sredstvima za političke stranke Grada Krka | D94: 2014 | E94: 7700 | F94: 7700 | H94: 7700
A95: 97439500228 | B95: Nezavisna lista David Mrakovčić | C95: Odluka o sredstvima za političke stranke Grada Krka | D95: 2014 | E95: 14000 | F95: 14000 | H95: 14000
A96: 41495097026 | B96: Primorsko goranski savez - PGS | C96: Odluka o sredstvima za političke stranke Grada Krka | D96: 2014 | E96: 36400 | F96: 36400 | H96: 36400
A97: 77600514446 | B97: Lag-Bjeloglavi sup | D97: 2014 | G97: 1500 | H97: 1500
A98: 60334254350 | B98: Područna vatrogasna zajednica otoka Krka-za DVD Krk | C98: Sporazum o sufinanc. | D98: 2014 | E98: 380000 | F98: 380000 | G98: 19681.81 | H98: 399681.81
A99: 14945344758 | B99: Srpska nacionalna manjina | D99: 2014 | G99: 10000 | H99: 10000
A100: 07103881876 | B100: Centar za brdsko planinsku poljoprivredu-ustanova | D100: 2014 | E100: 100000 | F100: 89025.81 | H100: 89025.81
A101: 31501920607 | B101: Crveni križ Krk | C101: Proračun grada za 2014- zakonska obveza | D101: 2014 | E101: 120000 | F101: 120000 | G101: 12000 | H101: 132000
A102: 12632735476 | B102: Udruga specijalne policije "Ajkula" | C102: "dani siječnja" i ljetni kamp za djecu i madež,Oaza mira | D102: 2014 | G102: 4000 | H102: 4000
A103: 10693338236 | B103: Spirit Udruga građana | C103: Man. Uhvati film | D103: 2014 | G103: 1000 | H103: 1000
A104: 19408676097 | B104: Šahovski klub - Draga | C104: Turnir | D104: 2014 | G104: 2000 | H104: =SUM(F104:G104) -> 2000
B105: Župa Sv. Jakova Ap.Kornić | C105: Sufinanciranje hodočašća | D105: 2014 | G105: 2000 | H105: 2000
A106: 14945344758 | B106: Hrvatsko društvo likovnih umjetnika Rijeka | C106: Održavanje radaudruge i akvarel -Krčka biskupija | D106: 2014 | G106: 4590.28 | H106: 0
A107: 04647134362 | B107: Udruga Livingstone | C107: Građanske inicijative | D107: 2014 | E107: 5000 | F107: 5000 | H107: 5000
A108: 11546411511 | B108: Udruga Ti si OK | C108: pokloni učen. | D108: 2014 | G108: 1860 | H108: 1860
A109: 90806197014 | B109: Klub za športski ribolov na moru "Big OM" Omišalj | C109: Big game fishing | D109: 2014 | G109: 2000 | H109: 2000
A110: 62995970904 | B110: LUKOM d.o.o. | C110: Suf.izdavaštva:Katica Ivanišević - Antologija pjesništva otoka Krka | D110: 2014 | E110: 4000 | F110: 4000 | H110: 4000
A111: 21212575148 | B111: Krčka biskupija | C111: Arheološko istraživanje crkve Sv.Lovre | D111: 2014 | G111: 10000 | H111: 10000
B112: Udruge hrvatske reprezentacije | C112: Suf. Rada udruge | D112: 2014 | G112: 1000 | H112: 1000
A113: 65042498461 | B113: Kristijan Žužić | C113: Sportaš Hrvatske VI kategorije | D113: 2014 | G113: 3000 | H113: 3000
A114: 01276605236 | B114: Eva Marija Jurešić | C114: Sportaš Hrvatske VI kategorije | D114: 2014 | G114: 3000 | H114: 3000
A115: 05029212031 | B115: Klub za ekspedicionizam i kulturu - KEK | C115: Projekt "Hrvatska iz zraka" | D115: 2014 | G115: 3000 | H115: 3000
A116: 99420440852 | B116: Udruga ljudi i običaji | C116: Suf. Festivala MIK | D116: 2014 | G116: 37000 | H116: 37000
A117: 35628238969 | B117: Lovačko društvo Zec Malinska | C117: Obilježavanje 105.obljetnice | D117: 2014 | G117: 5000 | H117: 5000
A118: 03536662692 | B118: MNK Malinska-Dubašnica | C118: Suf. Tiska knjige | D118: 2014 | G118: 5000 | H118: 5000
A119: 67035646025 | B119: Kulturno-umjetnička udruga građana Sputnik | C119: Prvomajski inkubator | D119: 2014 | G119: 3500 | H119: 3500
B120: UKUPNO: | E120: =SUM(E4:E119) -> 2599100 | F120: =SUM(F4:F119) -> 2474043.29 | G120: =SUM(G4:G119) -> 261151 | H120: 2735194.29
A122: *Ukupno knjiženo na kontima 381 tekuće donacije 2.890.904,16 i 382 kapitalne donacije 475.160,99 od čega je 2.735.194,29 kn plaćeno neprofitnim udrugama a 630.870,86 dobavljačima prema izdanom računu,ustanovama i sl. prema odluci Gradonačelnika,sporazumu,ugovoru (nije na popisu)
C125: REKAPITULACIJA
C127: NAZIV PROGRAMA | D127: POZICIJA PRORAČUNA 2014 | E127: PLANIRANO PREMA PROGRAMU | F127: OSTVARENO PREMA PROGRAMU * | G127: UKUPNO OSTVAREN PROGRAM | H127: RAZLIKA (ISPLATE IZ REZERVE PROGRAMA)
C128: Program za socijalno-humanitarne udruge, društva i ustanove Grada Krka | D128: 1218 | E128: =SUM(E4:E33) -> 268000 | F128: =SUM(F4:F33) -> 241000 | G128: 254600 | H128: =G128-F128 -> 13600
C129: Program sporta | D129: 1217 | E129: =SUM(E34:E55) -> 1035800 | F129: =SUM(F34:F55) -> 1021900 | G129: 1030475 | H129: =G129-F129 -> 8575
C130: Program javnih potreba u kulturi | D130: 1260 | E130: =SUM(E56:E73) -> 323500 | F130: =SUM(F56:F73) -> 294090 | G130: 294090 | H130: 0
C131: Program javnih potreba u tehničkoj kulturi | D131: 1222 | E131: =SUM(E74:E84) -> 150000 | F131: =SUM(F74:F84) -> 146400 | G131: 149400 | H131: 3000
C132: Program javnih potreba u poljoprivredi | D132: 2115 | E132: =SUM(E85:E89) -> 105000 | F132: =SUM(F85:F89) -> 64827.48 | G132: 70799.98 | H132: 5972.5
C133: Odluka o sredstvima za političke stranke Grada Krka | D133: 2104 | E133: =SUM(E90:E96) -> 107800 | F133: =SUM(F90:F96) -> 107800 | G133: 107800 | H133: 0
C135: * U koloni ostvareno prema Programu prikazana su sredstva doznačena udrugama za one udruge koje imaju zaključene ugovore
C136: Rashodi koji su realizirani iz rezerve Programa a nisu isplaćeni temeljem ugovora nisu uključeni

Sheet Popis donacija do 31.12.2015.
A1: GRAD KRK - IZVJEŠTAJ O DONACIJAMA UDRUGAMA I POLITIČKIM STRANKAMA IZ PRORAČUNA DO 31.12.2015.
A2: 1 | B2: 2 | C2: 3 | D2: 4 | E2: 5 | F2: 6 | G2: 7 | H2: 9
A3: OIB primatelja donacije | B3: Naziv primatelja donacije /šifra PP | C3: Naziv programa ili pojedinačne donacije | D3: Godina | E3: Planirano prema programu javnih potreba iz kolone 3.-ugovor | F3: Ostvarena donacija po programu iz kolone 3. | G3: Ostale donacije prema odluci Gradonačelnika | H3: Ukupno donacija udruzi 2014
A4: 13644894582 | B4: Udruga HVIDRA, otok Krk | C4: Program za socijalno-humanitarne udruge, društva i ustanove Grada Krka | D4: 2015 | E4: 25000 | F4: 25000 | H4: =SUM(F4:G4) -> 25000
A5: 04341489477 | B5: Udruga antifašističkih boraca Otoka Krka | C5: Program za socijalno-humanitarne udruge, društva i ustanove Grada Krka | D5: 2015 | E5: 15000 | F5: 15000 | G5: 5974 | H5: 20974
A6: 04341489477 | B6: Udruga antifašističkih boraca Grada Krka | C6: Program za socijalno-humanitarne udruge, društva i ustanove Grada Krka | D6: 2015 | E6: 10000 | F6: 10000 | H6: 10000
A7: 04341489477 | B7: Udruga antifašističkih boraca Šotovento | C7: Program za socijalno-humanitarne udruge, društva i ustanove Grada Krka | D7: 2015 | E7: 10000 | F7: 10000 | H7: 10000
A8: 87108816444 | B8: Udruga umirovljenika Grada Krka | C8: Program za socijalno-humanitarne udruge, društva i ustanove Grada Krka | D8: 2015 | E8: 30000 | F8: 30000 | G8: 14728.38 | H8: 44728.38
A9: 67753818672 | B9: Udruga umirovljenika Šotovento | C9: Program za socijalno-humanitarne udruge, društva i ustanove Grada Krka | D9: 2015 | E9: 30000 | F9: 27000 | G9: 17474.72 | H9: 44474.72
A10: 17299379476 | B10: Udruga gluhih i nagluhih | C10: Program za socijalno-humanitarne udruge, društva i ustanove Grada Krka | D10: 2015 | E10: 2000 | F10: 2000 | H10: 2000
A11: 80713734687 | B11: Udruga slijepih PGŽ Rijeka | C11: Program za socijalno-humanitarne udruge, društva i ustanove Grada Krka | D11: 2015 | E11: 2000 | F11: 2000 | H11: 2000
A12: 71954510830 | B12: Udruga osoba s mišićnom distrofijom PGŽ | C12: Program za socijalno-humanitarne udruge, društva i ustanove Grada Krka | D12: 2015 | E12: 2000 | F12: 2000 | H12: 2000
A13: 470252MB | B13: Caritas Krk | C13: Program za socijalno-humanitarne udruge, društva i ustanove Grada Krka | D13: 2015 | E13: 10000 | F13: 7500 | H13: 7500
A14: 73790034362 | B14: Kvarnerski vez | C14: Program za socijalno-humanitarne udruge, društva i ustanove Grada Krka | D14: 2015 | E14: 3000 | H14: 0
A15: 76455622311 | B15: Udruga invalida kvarnerskih otoka | C15: Program za socijalno-humanitarne udruge, društva i ustanove Grada Krka | D15: 2015 | E15: 10000 | F15: 10000 | H15: 10000
A16: 59764000772 | B16: Gorska služba spašavanja | C16: Program za socijalno-humanitarne udruge, društva i ustanove Grada Krka | D16: 2015 | E16: 20000 | F16: 20000 | H16: 20000
A17: 45092136734 | B17: Povijesno društvo Otoka Krka | C17: Program za socijalno-humanitarne udruge, društva i ustanove Grada Krka | D17: 2015 | E17: 5000 | F17: 5000 | H17: 5000
A18: 61916000339 | B18: Udruga za zaštitu životinja "Felix" | C18: Program za socijalno-humanitarne udruge, društva i ustanove Grada Krka | D18: 2015 | E18: 4000 | F18: 4000 | H18: 4000
A19: 68386873672 | B19: Udruga "Obitelj za mlade" | C19: Program za socijalno-humanitarne udruge, društva i ustanove Grada Krka | D19: 2015 | E19: 4000 | F19: 4000 | H19: 4000
A20: 08002590MB | B20: Udruga veterana Domovinskog rata | C20: Program za socijalno-humanitarne udruge, društva i ustanove Grada Krka | D20: 2015 | E20: 15000 | F20: 15000 | G20: 7000 | H20: 22000
A21: 26889141768 | B21: Klub liječenih ovisnika otoka Krka "Gromača" | C21: Program za socijalno-humanitarne udruge, društva i ustanove Grada Krka | D21: 2015 | E21: 20000 | F21: 20000 | H21: 20000
A22: 45613787772 | B22: Nastavni zavod za javno zdravstvo | C22: Program za socijalno-humanitarne udruge, društva i ustanove Grada Krka | D22: 2015 | E22: 10000 | F22: 10000 | G22: 6770 | H22: 16770
A23: 60978973343 | B23: Zajednica talijana Krk | C23: Program za socijalno-humanitarne udruge, društva i ustanove Grada Krka | D23: 2015 | E23: 10000 | F23: 7000 | H23: 7000
A24: 11268954050 | B24: Pokret za život | C24: Program za socijalno-humanitarne udruge, društva i ustanove Grada Krka | D24: 2015 | E24: 3000 | F24: 3000 | H24: 3000
A25: 95951192179 | B25: Udruga za terapijsko jahanje "Moj prijatelj" Njivice | C25: Program za socijalno-humanitarne udruge, društva i ustanove Grada Krka | D25: 2015 | E25: 3000 | F25: 3000 | H25: 3000
A26: 57537731492 | B26: Zajednica Crnogoraca PGŽ-a | C26: Program za socijalno-humanitarne udruge, društva i ustanove Grada Krka | D26: 2015 | E26: 2000 | H26: 0
A27: 48646835982 | B27: Udruga osoba operiranih dojki "Nada" | C27: Program za socijalno-humanitarne udruge, društva i ustanove Grada Krka-kalendari | D27: 2015 | G27: 1500 | H27: 1500
A28: 05478483564 | B28: Jedriličarski klub "Plav" | C28: Program sporta | D28: 2015 | E28: 80000 | F28: 80000 | G28: 825 | H28: 80825
A29: 36756573211 | B29: Judo klub Krk | C29: Program sporta | D29: 2015 | E29: 65000 | F29: 65000 | G29: 5687.5 | H29: 70687.5
A30: 03533054678 | B30: Nogometni klub Krk | C30: Program sporta | D30: 2015 | E30: 390000 | F30: 390000 | G30: 14150 | H30: 404150
A31: 86232456623 | B31: Boćarski klub Krk | C31: Program sporta | D31: 2015 | E31: 40000 | F31: 40000 | H31: 40000
A32: 45131977269 | B32: Košarkaški klub Krk | C32: Program sporta | D32: 2015 | E32: 160000 | F32: 160000 | H32: 160000
A33: 08000507MB | B33: Boćarski klub Brzac | C33: Program sporta | D33: 2015 | E33: 50000 | F33: 50000 | H33: 50000
A34: 96996266947 | B34: Atletski klub | C34: Program sporta | D34: 2015 | E34: 35000 | F34: 35000 | G34: 40000 | H34: 75000
A35: 76916108498 | B35: Malonogometni klub krk | C35: Program sporta | D35: 2015 | E35: 12000 | F35: 9500 | H35: 9500
A36: 26187625353 | B36: ŠRD "Glavoč" Linardići | C36: Program sporta | D36: 2015 | E36: 5000 | F36: 5000 | G36: 3000 | H36: =SUM(F36:G36) -> 8000
A37: 91785441723 | B37: Klub za športski ribolov "Sv. Fuska" Linardići | C37: Program sporta | D37: 2015 | E37: 5000 | F37: 5000 | H37: 5000
A38: 98470469935 | B38: Š.R.D. "Čavlena", Poljica | C38: Program sporta | D38: 2015 | E38: 5000 | F38: 5000 | H38: 5000
A39: 3010199207 | B39: Š.R.D. Lovrata | C39: Program sporta | D39: 2015 | E39: 40000 | F39: 40000 | G39: 23000 | H39: 63000
A40: 21584915136 | B40: Š.R.D. "Poteljan" - Brzac | C40: Program sporta | D40: 2015 | E40: 5000 | F40: 5000 | H40: 5000
A41: 34791402277 | B41: U.Š.R. "Pepice", Krk | C41: Program sporta | D41: 2015 | E41: 5000 | F41: 5000 | H41: 5000
A42: 30112731589 | B42: Streljački klub "Bodulka", Krk | C42: Program sporta | D42: 2015 | E42: 15000 | F42: 15000 | G42: 900 | H42: 15900
A43: 22800276467 | B43: Karate klub "Krk", Krk | C43: Program sporta | D43: 2015 | E43: 25000 | F43: 25000 | G43: 3560 | H43: 28560
A44: 62150220652 | B44: Streličarski klub Maura Kal, Krk | C44: Program sporta | D44: 2015 | E44: 35000 | F44: 35000 | H44: 35000
A45: 78472729020 | B45: Brdsko biciklistički klub, Krk | C45: Program sporta | D45: 2015 | E45: 10000 | H45: 0
A46: 12308261479 | B46: Wakeboard klub , Krk | C46: Program sporta | D46: 2015 | E46: 15000 | F46: 15000 | H46: 15000
A47: 51467769782 | B47: STK Malinska-Dubašnica, Malinska | C47: Program sporta | D47: 2015 | E47: 25000 | F47: 25000 | G47: 5000 | H47: 30000
A48: 46126478423 | B48: Društvo za športsku rekreaciju "Šišulica" | C48: Program sporta | D48: 2015 | E48: 5000 | F48: 5000 | H48: 5000
A49: 43320920196 | B49: D.P.Z. zbor "Mići boduli" | C49: Program javnih potreba u kulturi | D49: 2015 | E49: 70000 | F49: 70000 | G49: 2837.16 | H49: 72837.16
A50: 75741049188 | B50: Gradska limena glazba Krk | C50: Program javnih potreba u kulturi | D50: 2015 | E50: 60000 | F50: 60000 | G50: 6000 | H50: 66000
A51: 50403072234 | B51: Gradski pjevački zbor - Krk | C51: Program javnih potreba u kulturi | D51: 2015 | E51: 15000 | F51: 15000 | H51: 15000
A52: 46553375003 | B52: Katedra čakavskog sabora - Kornić | C52: Program javnih potreba u kulturi | D52: 2015 | E52: 22000 | F52: 22000 | H52: 22000
A53: 02948679852 | B53: K.U.D. Vrh | C53: Program javnih potreba u kulturi | D53: 2015 | E53: 20000 | F53: 20000 | G53: 3000 | H53: 23000
A54: 12405095116 | B54: Kulturno društvo Kornić | C54: Program javnih potreba u kulturi | D54: 2015 | E54: 20000 | F54: 20000 | G54: 10000 | H54: 30000
A55: 17069296058 | B55: Folklorno društvo Poljica | C55: Program javnih potreba u kulturi | D55: 2015 | E55: 15000 | F55: 12000 | G55: 6000 | H55: 18000
A56: 77259416962 | B56: Plesna udruga Krk - Osjeti ritam Pinezići | C56: Program javnih potreba u kulturi | D56: 2015 | E56: 15000 | F56: 14000 | H56: 14000
A57: 86856424924 | B57: Multimedijalna udruga Krčka beseda Krk | C57: Program javnih potreba u kulturi | D57: 2015 | E57: 5000 | F57: 5000 | G57: 1000 | H57: 6000
A58: 1120743MB | B58: Glazbena škola Mirković - Lovran | C58: Program javnih potreba u kulturi | D58: 2015 | E58: 2000 | H58: 0
A59: 66601934965 | B59: Plesna skupina Monfrina - Krk | C59: Program javnih potreba u kulturi | D59: 2015 | E59: 13000 | F59: 13000 | H59: 13000
A60: 04345582762 | B60: Udruga sopaca otoka Krka | C60: Program javnih potreba u kulturi | D60: 2015 | E60: 6000 | F60: 6000 | H60: 6000
A61: 12016859209 | B61: Udruga Knezovi krčki Frankopan | C61: Program javnih potreba u kulturi | D61: 2015 | E61: 15000 | F61: 15000 | G61: 6000 | H61: 21000
A62: 08001469 | B62: Karnevalska udruga "Povero Keko" | C62: Program javnih potreba u kulturi | D62: 2015 | E62: 8000 | F62: 8000 | G62: 3000 | H62: 11000
A63: 77635713545 | B63: Otvoreno kazalište Omišalj | C63: Program javnih potreba u kulturi | D63: 2015 | E63: 4000 | F63: 4000 | H63: 4000
A64: 21349394661 | B64: Demo udruga bendova Grada Krka-Udruga Kreativni Krk | C64: Program javnih potreba u kulturi | D64: 2015 | E64: 15000 | F64: 15000 | G64: 40177 | H64: 55177
A65: 91438028726 | B65: Udruga Zlatni otok pjeva, Krk | C65: Program javnih potreba u kulturi | D65: 2015 | E65: 15000 | F65: 15000 | G65: 10000 | H65: 25000
A66: 23708870261 | B66: Šahovski klub - Krk | C66: Program javnih potreba u tehničkoj kulturi | D66: 2015 | E66: 47000 | F66: 47050 | G66: 7000 | H66: 54050
A67: 60024777398 | B67: Informatički klub - Krk KIOK 905 | C67: Program javnih potreba u tehničkoj kulturi | D67: 2015 | E67: 25000 | F67: 25000 | H67: 25000
A68: 92972369942 | B68: Planinarsko društvo Obzova Njivice | C68: Program javnih potreba u tehničkoj kulturi | D68: 2015 | E68: 15000 | F68: 15000 | G68: 8715.95 | H68: =SUM(F68:G68) -> 23715.95
A69: 92942299310 | B69: Veslački klub "Glagoljaš" - Omišalj | C69: Program javnih potreba u tehničkoj kulturi | D69: 2015 | E69: 5000 | F69: 5000 | H69: 5000
A70: 72556929505 | B70: Foto klub Krk | C70: Program javnih potreba u tehničkoj kulturi | D70: 2015 | E70: 5000 | F70: 5000 | H70: 5000
A71: 34876825002 | B71: Zrakoplovni klub otoka Krka | C71: Program javnih potreba u tehničkoj kulturi | D71: 2015 | E71: 5000 | F71: 5000 | H71: 5000
A72: 57026135581 | B72: Filatelističkodruštvo Krk | C72: Program javnih potreba u tehničkoj kulturi | D72: 2015 | E72: 10000 | F72: 10000 | H72: 10000
A73: 17305749299 | B73: Auto klub Krk | C73: Program javnih potreba u tehničkoj kulturi | D73: 2015 | E73: 30000 | F73: 30000 | H73: 30000
A74: 91063173829 | B74: Moto klub Griffons Krk | C74: Program javnih potreba u tehničkoj kulturi | D74: 2015 | E74: 3000 | F74: 3000 | H74: 3000
A75: 67421370315 | B75: Lovačko društvo "Kamenjarka" | C75: Program javnih potreba u poljoprivredi | D75: 2015 | E75: 10000 | F75: 10000 | H75: 10000
A76: 89342153826 | B76: Lovačko društvo "Šljuka" - Krk | C76: Program javnih potreba u poljoprivredi | D76: 2015 | E76: 10000 | F76: 10000 | H76: 10000
A77: 50206656419 | B77: Udruga maslinara "Drobnica" - Krk | C77: Program javnih potreba u poljoprivredi | D77: 2015 | E77: 55000 | F77: 55000 | G77: 21990 | H77: 76990
A78: 82907571905 | B78: Udruga vinara otoka Krka "Bukaleta" | C78: Program javnih potreba u poljoprivredi | D78: 2015 | E78: 10000 | F78: 10000 | G78: 2000 | H78: 12000
A79: 76318722399 | B79: Udruga pčelara "Kadulja" otoka Krka | C79: Program javnih potreba u poljoprivredi | D79: 2015 | E79: 8000 | F79: 8000 | H79: 8000
A80: 04150008463 | B80: Hrvatska demokratska zajednica -HDZ | C80: Odluka o sredstvima za političke stranke Grada Krka | D80: 2015 | E80: 12250 | F80: 12250 | H80: 12250
A81: 82435880635 | B81: Hrvatska narodna stranka -HNS | C81: Odluka o sredstvima za političke stranke Grada Krka | D81: 2015 | E81: 14000 | F81: 14000 | H81: 14000
A82: 02010978731 | B82: Socijal -demokratska partija SDP | C82: Odluka o sredstvima za političke stranke Grada Krka | D82: 2015 | E82: 14700 | F82: 14700 | H82: 14700
A83: 08692235081 | B83: Hrvatska socijalnoliberalna stranka HSLS | C83: Odluka o sredstvima za političke stranke Grada Krka | D83: 2015 | E83: 7000 | F83: 7000 | H83: 7000
A84: 40857015687 | B84: Zelena stranka | C84: Odluka o sredstvima za političke stranke Grada Krka | D84: 2015 | E84: 7700 | F84: 7700 | H84: 7700
A85: 97439500228 | B85: Nezavisna lista David Mrakovčić | C85: Odluka o sredstvima za političke stranke Grada Krka | D85: 2015 | E85: 5250 | F85: 5250 | H85: 5250
A86: 11773779232 | B86: Darko Purić - nezavisni vijećnik | C86: Odluka o sredstvima za političke stranke Grada Krka | D86: 2015 | E86: 5250 | F86: 5250 | H86: 5250
A87: 26665813859 | B87: HSP- Hrvatska stranka prava | C87: Odluka o sredstvima za političke stranke Grada Krka | D87: 2015 | E87: 1750 | F87: 1750 | H87: 1750
A88: 41495097026 | B88: Primorsko goranski savez - PGS | C88: Odluka o sredstvima za političke stranke Grada Krka | D88: 2015 | E88: 36400 | F88: 36400 | H88: 36400
A89: 77600514446 | B89: Lag-Bjeloglavi sup | D89: 2015 | G89: 12562 | H89: 12562
A90: 60334254350 | B90: Područna vatrogasna zajednica otoka Krka-za DVD Krk | C90: Sporazum o sufinanc. | D90: 2015 | E90: 380000 | F90: 380000 | H90: 380000
A91: 07103881876 | B91: Centar za brdsko planinsku poljoprivredu-ustanova | D91: 2015 | E91: 56000 | F91: 56000 | H91: 56000
A92: 31501920607 | B92: Crveni križ Krk | C92: Proračun grada za 2014- zakonska obveza | D92: 2015 | E92: 120000 | F92: 120000 | G92: 3000 | H92: 123000
A93: 12632735476 | B93: Udruga specijalne policije "Ajkula" | C93: "dani siječnja" i ljetni kamp za djecu i madež,Oaza mira | D93: 2015 | G93: 2000 | H93: 2000
A94: 10693338236 | B94: Spirit Udruga građana | C94: Man. Uhvati film | D94: 2015 | G94: 1000 | H94: 1000
A95: 19408676097 | B95: Šahovski klub - Draga | C95: Turnir | D95: 2015 | G95: 2000 | H95: 2000
A96: 14945344758 | B96: Hrvatsko društvo likovnih umjetnika Rijeka | C96: Održavanje radaudruge i akvarel -Krčka biskupija | D96: 2015 | G96: 2000 | H96: 2000
A97: 04647134362 | B97: Udruga Livingstone | C97: Građanske inicijative | D97: 2015 | E97: 5000 | F97: 5000 | H97: 5000
A98: 11546411511 | B98: Udruga Ti si OK | C98: pokloni učen. | D98: 2015 | G98: 3000 | H98: 3000
A99: 90806197014 | B99: Klub za športski ribolov na moru "Big OM" Omišalj | C99: Big game fishing | D99: 2015 | G99: 2000 | H99: 2000
A100: 99420440852 | B100: Udruga ljudi i običaji | C100: Suf. Festivala MIK | D100: 2015 | G100: 74000 | H100: =SUM(F100:G100) -> 74000
A101: 35628238969 | B101: Lovačko društvo Zec Malinska | C101: Obilježavanje 105.obljetnice | D101: 2015 | G101: 7969.78 | H101: 7969.78
B102: Savjet mladih grada Krka | C102: Temeljem sporazuma odobrena sredstva su prenesena udruzi Kreativni Krk | D102: 2015 | E102: 30000 | H102: 0
A103: 61989185242 | B103: Hrvatska akademija znanosti i umjestnosti | D103: 2015 | E103: 10000 | H103: 0
A104: 15176383116 | B104: LIONS KLUB RIJEKA-KORZO | C104: Aparat neurofeedback | D104: 2015 | G104: 1000 | H104: 1000
A105: 96703924639 | B105: Udruga dragovoljaca i veterana RH-Omišalj | D105: 2015 | G105: 2000 | H105: 2000
A106: 77893798390 | B106: Udruga umirovljenika unutarnjih poslova | C106: Uređenje zapuštenog puta na predjelu Kimpi-Kaštel | D106: 2015 | G106: 10000 | H106: 10000
A107: 4535750174 | B107: K.D. SV.JURAJ, Kras | C107: Smotra folklora u Betini | D107: 2015 | G107: 1000 | H107: 1000
A108: 21365484017 | B108: Centar za rehabilitaciju FORTICA | C108: Financ. Potpora za 5.susret MATP-a | D108: 2015 | G108: 1000 | H108: 1000
A109: 10693338236 | B109: Udruga SPIRIT | D109: 2015 | G109: 1000 | H109: 1000
A110: 10912945962 | B110: Pazinski kolegij- klasična gimnazija | D110: 2015 | G110: 1000 | H110: 1000
B111: IVAN SINDIČIĆ- nagrada za darovite sportaše | C111: 2.mjesto na nacionalnom kadetskom prvenstvu RH (skijanje na vodi) | D111: 2015 | G111: 3000 | H111: 3000
B112: MARKO ŽUŽIĆ-nagrada za darovite sportaše | C112: 2.mjesto na nacionalnom juniorskom prvenstvu RH u jedrenju | D112: 2015 | G112: 3000 | H112: 3000
A113: 9922829861 | B113: Građevinsko tehnička škola Rijeka | C113: Sufinanciranje škole stvaralaštva Ivor Hrast | D113: 2015 | G113: 2150 | H113: 2150
B114: UKUPNO: | E114: =SUM(E4:E101) -> 2495300 | F114: =SUM(F4:F101) -> 2463350 | G114: =SUM(G4:G101) -> 386821.49 | H114: 2850171.49
A116: *Ukupno knjiženo na kontima 381 tekuće donacije 3.107.816,23 i 382 kapitalne donacije 1.135.289,42 od čega je 2.850.171,49 kn plaćeno neprofitnim udrugama a 1.392.934,16 dobavljačima prema izdanom računu,ustanovama i sl. prema odluci Gradonačelnika,sporazumu,ugovoru (nije na popisu)
C119: REKAPITULACIJA
C121: NAZIV PROGRAMA | D121: POZICIJA PRORAČUNA 2014 | E121: PLANIRANO PREMA PROGRAMU | F121: OSTVARENO PREMA PROGRAMU * | G121: UKUPNO OSTVAREN PROGRAM | H121: RAZLIKA (ISPLATE IZ REZERVE PROGRAMA)
C122: Program za socijalno-humanitarne udruge, društva i ustanove Grada Krka | D122: 1218 | E122: =SUM(E4:E25) -> 243000 | F122: =SUM(F4:F25) -> 231500 | G122: =SUM(H4:H27) -> 284947.1 | H122: =G122-F122 -> 53447.1
C123: Program sporta | D123: 1217 | E123: =SUM(E28:E48) -> 1027000 | F123: =SUM(F28:F48) -> 1014500 | G123: =SUM(H28:H48) -> 1110622.5 | H123: 96122.5
C124: Program javnih potreba u kulturi | D124: 1260 | E124: =SUM(E49:E65) -> 320000 | F124: =SUM(F49:F65) -> 314000 | G124: =SUM(H49:H65) -> 402014.16 | H124: 88014.16
C125: Program javnih potreba u tehničkoj kulturi | D125: 1222 | E125: =SUM(E66:E74) -> 145000 | F125: =SUM(F66:F74) -> 145050 | G125: =SUM(H66:H74) -> 160765.95 | H125: 15715.95
C126: Program javnih potreba u poljoprivredi | D126: 2115 | E126: =SUM(E75:E79) -> 93000 | F126: =SUM(F75:F79) -> 93000 | G126: =SUM(H75:H79) -> 116990 | H126: 23990
C127: Odluka o sredstvima za političke stranke Grada Krka | D127: 2104 | E127: =SUM(E80:E88) -> 104300 | F127: =SUM(F80:F88) -> 104300 | G127: =SUM(H80:H88) -> 104300 | H127: 0
C129: * U koloni ostvareno prema Programu prikazana su sredstva doznačena udrugama za one udruge koje imaju zaključene ugovore
C130: Rashodi koji su realizirani iz rezerve Programa a nisu isplaćeni temeljem ugovora nisu uključeni

Sheet Popis donacija do 31.12.2016.
A1: GRAD KRK - IZVJEŠTAJ O DONACIJAMA UDRUGAMA I POLITIČKIM STRANKAMA IZ PRORAČUNA DO 31.12.2016.
A2: 1 | B2: 2 | C2: 3 | D2: 4 | E2: 5 | F2: 6 | G2: 7 | H2: 9
A3: OIB primatelja donacije | B3: Naziv primatelja donacije /šifra PP | C3: Naziv programa ili pojedinačne donacije | D3: Godina | E3: Planirano prema programu javnih potreba iz kolone 3.-ugovor | F3: Ostvarena donacija po programu iz kolone 3. | G3: Ostale donacije prema odluci Gradonačelnika | H3: Ukupno donacija udruzi 2016
A4: 13644894582 | B4: Udruga HVIDRA, otok Krk | C4: Program za socijalno-humanitarne udruge, društva i ustanove Grada Krka | E4: 25000 | F4: 25000 | H4: =F4+G4 -> 25000
A5: 04341489477 | B5: Udruga antifašističkih boraca Otoka Krka | C5: Program za socijalno-humanitarne udruge, društva i ustanove Grada Krka | E5: 37000 | F5: 37000 | G5: 3000 | H5: =F5+G5 -> 40000
A6: 87108816444 | B6: Udruga umirovljenika Grada Krka | C6: Program za socijalno-humanitarne udruge, društva i ustanove Grada Krka | E6: 50000 | F6: 50000 | G6: 5000 | H6: 55000
A7: 67753818672 | B7: Udruga umirovljenika Šotovento | C7: Program za socijalno-humanitarne udruge, društva i ustanove Grada Krka | E7: 50000 | F7: 42800 | H7: 42800
A8: 71954510830 | B8: Udruga osoba s mišićnom distrofijom PGŽ | C8: Program za socijalno-humanitarne udruge, društva i ustanove Grada Krka | E8: 2000 | F8: 2000 | H8: 2000
A9: 470252MB | B9: Caritas Krk | C9: Program za socijalno-humanitarne udruge, društva i ustanove Grada Krka | E9: 12000 | F9: 12000 | H9: 12000
A10: 76455622311 | B10: Udruga invalida kvarnerskih otoka | C10: Program za socijalno-humanitarne udruge, društva i ustanove Grada Krka | E10: 12000 | F10: 12000 | H10: 12000
A11: 59764000772 | B11: Gorska služba spašavanja | C11: Program za socijalno-humanitarne udruge, društva i ustanove Grada Krka | E11: 18000 | F11: 18000 | H11: 18000
A12: 60978973343 | B12: Zajednica talijana Krk | C12: Program za socijalno-humanitarne udruge, društva i ustanove Grada Krka | E12: 10000 | F12: 5900 | G12: 4100 | H12: =F12+G12 -> 10000
A13: 45092136734 | B13: Povijesno društvo Otoka Krka | C13: Program za socijalno-humanitarne udruge, društva i ustanove Grada Krka | E13: 5000 | F13: 5000 | H13: 5000
A14: 61916000339 | B14: Udruga za zaštitu životinja "Felix" | C14: Program za socijalno-humanitarne udruge, društva i ustanove Grada Krka | E14: 4000 | F14: 4000 | H14: 4000
A15: 08002590MB | B15: Udruga veterana Domovinskog rata | C15: Program za socijalno-humanitarne udruge, društva i ustanove Grada Krka | E15: 15000 | F15: 15000 | G15: 13000 | H15: 28000
A16: 26889141768 | B16: Klub liječenih ovisnika otoka Krka "Gromača" | C16: Program za socijalno-humanitarne udruge, društva i ustanove Grada Krka | E16: 20000 | F16: 20000 | H16: 20000
A17: 11268954050 | B17: Pokret za život | C17: Program za socijalno-humanitarne udruge, društva i ustanove Grada Krka | E17: 3000 | F17: 3000 | H17: 3000
A18: 66075422561 | B18: Udruga Kreativni 40+ podr. Malinska | C18: Program za socijalno-humanitarne udruge, društva i ustanove Grada Krka | E18: 2000 | F18: 1000 | H18: 1000
A19: 9165632246 | B19: Društvo multiple skleroze PGŽ | C19: Program za socijalno-humanitarne udruge, društva i ustanove Grada Krka | E19: 2000 | F19: 2000 | G19: 800 | H19: 2800
A20: 95951192179 | B20: Udruga za terapijsko jahanje "Moj prijatelj" Njivice | C20: Program za socijalno-humanitarne udruge, društva i ustanove Grada Krka | E20: 3000 | F20: 3000 | G20: 1000 | H20: =F20+G20 -> 4000
A21: 05478483564 | B21: Jedriličarski klub "Plav" | C21: Program sporta | E21: 80000 | F21: 80000 | H21: =F21+G21 -> 80000
A22: 36756573211 | B22: Judo klub Krk | C22: Program sporta | E22: 65000 | F22: 65000 | G22: 6185 | H22: 71185
A23: 03533054678 | B23: Nogometni klub Krk | C23: Program sporta | E23: 390000 | F23: 390000 | G23: 20687.5 | H23: 410687.5
A24: 86232456623 | B24: Boćarski klub Krk | C24: Program sporta | E24: 40000 | F24: 40000 | H24: 40000
A25: 45131977269 | B25: Košarkaški klub Krk | C25: Program sporta | E25: 160000 | F25: 160000 | H25: 160000
A26: 08000507MB | B26: Boćarski klub Brzac | C26: Program sporta | E26: 50000 | F26: 50000 | G26: 10000 | H26: 60000
A27: 96996266947 | B27: Atletski klub | C27: Program sporta | E27: 35000 | F27: 35000 | G27: 23625 | H27: 58625
A28: 76916108498 | B28: Malonogometni klub krk | C28: Program sporta | E28: 5000 | F28: 3000 | H28: 3000
A29: 26187625353 | B29: ŠRD "Glavoč" Linardići | C29: Program sporta | E29: 5000 | F29: 5000 | H29: 5000
A30: 91785441723 | B30: Klub za športski ribolov "Sv. Fuska" Linardići | C30: Program sporta | E30: 5000 | F30: 5000 | H30: 5000
A31: 98470469935 | B31: Š.R.D. "Čavlena", Poljica | C31: Program sporta | E31: 5000 | F31: 5000 | G31: 3000 | H31: 8000
A32: 3010199207 | B32: Š.R.D. Lovrata | C32: Program sporta | E32: 40000 | F32: 40000 | G32: 5000 | H32: 45000
A33: 21584915136 | B33: Š.R.D. "Poteljan" - Brzac | C33: Program sporta | E33: 5000 | F33: 5000 | H33: 5000
A34: 34791402277 | B34: U.Š.R. "Pepice", Krk | C34: Program sporta | E34: 5000 | F34: 5000 | H34: 5000
A35: 30112731589 | B35: Streljački klub "Bodulka", Krk | C35: Program sporta | E35: 15000 | F35: 15000 | H35: 15000
A36: 22800276467 | B36: Karate klub "Krk", Krk | C36: Program sporta | E36: 25000 | F36: 25000 | G36: 5000 | H36: 30000
A37: 62150220652 | B37: Streličarski klub Maura Kal, Krk | C37: Program sporta | E37: 35000 | F37: 35000 | G37: 3600 | H37: 38600
A38: 12308261479 | B38: Wakeboard klub , Krk | C38: Program sporta | E38: 15000 | F38: 15000 | H38: 15000
A39: 51467769782 | B39: STK Malinska-Dubašnica, Malinska | C39: Program sporta | E39: 30000 | F39: 30000 | G39: 3000 | H39: 33000
A40: 69727213411 | B40: Rukometni klub Omišalj | C40: Program sporta | E40: 5000 | F40: 5000 | H40: 5000
A41: 46126478423 | B41: Društvo za športsku rekreaciju "Šišulica" | C41: Program sporta | E41: 5000 | F41: 5000 | H41: 5000
A42: 43320920196 | B42: D.P.Z. zbor "Mići boduli" | C42: Program javnih potreba u kulturi | E42: 70000 | F42: 70000 | G42: 10000 | H42: 80000
A43: 75741049188 | B43: Gradska limena glazba Krk | C43: Program javnih potreba u kulturi | E43: 60000 | F43: 58300 | H43: 58300
A44: 50403072234 | B44: Gradski pjevački zbor - Krk | C44: Program javnih potreba u kulturi | E44: 15000 | F44: 15000 | H44: 15000
A45: 46553375003 | B45: Katedra čakavskog sabora - Kornić | C45: Program javnih potreba u kulturi | E45: 20000 | F45: 22000 | G45: 3500 | H45: 25500
A46: 02948679852 | B46: K.U.D. Vrh | C46: Program javnih potreba u kulturi | E46: 20000 | F46: 20000 | G46: 3000 | H46: 23000
A47: 12405095116 | B47: Kulturno društvo Kornić | C47: Program javnih potreba u kulturi | E47: 20000 | F47: 20000 | G47: 3000 | H47: 23000
A48: 77259416962 | B48: Plesna udruga Krk - Osjeti ritam Pinezići | C48: Program javnih potreba u kulturi | E48: 15000 | F48: 15000 | G48: 5000 | H48: 20000
A49: 86856424924 | B49: Multimedijalna udruga Krčka beseda Krk | C49: Program javnih potreba u kulturi | E49: 5000 | F49: 5000 | G49: 5000 | H49: 10000
A50: 1120743MB | B50: Glazbena škola Mirković - Lovran | C50: Program javnih potreba u kulturi | E50: 2000 | F50: 2000 | G50: 2000 | H50: 4000
A51: 66601934965 | B51: Plesna skupina Monfrina - Krk | C51: Program javnih potreba u kulturi | E51: 13000 | F51: 13000 | H51: 13000
A52: 04345582762 | B52: Udruga sopaca otoka Krka | C52: Program javnih potreba u kulturi | E52: 6000 | F52: 6000 | H52: 6000
A53: 12016859209 | B53: Udruga Knezovi krčki Frankopan | C53: Program javnih potreba u kulturi | E53: 15000 | F53: 15000 | H53: 15000
A54: 08001469 | B54: Karnevalska udruga "Povero Keko" | C54: Program javnih potreba u kulturi | E54: 8000 | F54: 8000 | G54: 8000 | H54: 16000
A55: 77635713545 | B55: Otvoreno kazalište Omišalj | C55: Program javnih potreba u kulturi | E55: 2000 | F55: 2000 | H55: 2000
A56: 21349394661 | B56: Demo udruga bendova Grada Krka-Udruga Kreativni Krk | C56: Program javnih potreba u kulturi | E56: 25000 | F56: 25000 | G56: 38000 | H56: 63000
A57: 60978973343 | B57: Zajednica talijana Krk | C57: Program javnih potreba u kulturi | E57: 10000 | F57: 5900 | G57: 4100 | H57: 10000
A58: 01051197257 | B58: Dječja plesna skupina Povero Keko | C58: Program javnih potreba u kulturi | E58: 7000 | F58: 7000 | H58: 7000
A59: 10569544707 | B59: Udruga Ćuk | C59: Program javnih potreba u kulturi | E59: 20000 | F59: 20000 | G59: 5000 | H59: 25000
A60: 23708870261 | B60: Šahovski klub - Krk | C60: Program javnih potreba u tehničkoj kulturi | E60: 47000 | F60: 47000 | G60: 5000 | H60: 52000
A61: 60024777398 | B61: Informatički klub - Krk KIOK 905 | C61: Program javnih potreba u tehničkoj kulturi | E61: 25000 | F61: 25000 | G61: 3000 | H61: 28000
A62: 92972369942 | B62: Planinarsko društvo Obzova Njivice | C62: Program javnih potreba u tehničkoj kulturi | E62: 10000 | F62: 10000 | G62: 3000 | H62: 13000
A63: 92942299310 | B63: Veslački klub "Glagoljaš" - Omišalj | C63: Program javnih potreba u tehničkoj kulturi | E63: 10000 | F63: 10000 | G63: 2000 | H63: 12000
A64: 72556929505 | B64: Foto klub Krk | C64: Program javnih potreba u tehničkoj kulturi | E64: 10000 | F64: 10000 | G64: 4000 | H64: 14000
A65: 34876825002 | B65: Zrakoplovni klub otoka Krka | C65: Program javnih potreba u tehničkoj kulturi | E65: 5000 | F65: 5000 | H65: 5000
A66: 57026135581 | B66: Filatelističkodruštvo Krk | C66: Program javnih potreba u tehničkoj kulturi | E66: 10000 | F66: 10000 | H66: 10000
A67: 17305749299 | B67: Auto klub Krk | C67: Program javnih potreba u tehničkoj kulturi | E67: 30000 | F67: 30000 | G67: 2000 | H67: 32000
A68: 40771840841 | B68: Streljački klub DUB Malinska | C68: Program javnih potreba u tehničkoj kulturi | E68: 3000 | F68: 3000 | H68: 3000
A69: 91063173829 | B69: Moto klub Griffons Krk | C69: Program javnih potreba u tehničkoj kulturi | E69: 3000 | F69: 3000 | H69: 3000
A70: 67421370315 | B70: Lovačko društvo "Kamenjarka" | C70: Program javnih potreba u poljoprivredi | E70: 10000 | F70: 10000 | H70: =F70+G70 -> 10000
A71: 89342153826 | B71: Lovačko društvo "Šljuka" - Krk | C71: Program javnih potreba u poljoprivredi | E71: 10000 | F71: 10000 | H71: 10000
A72: 50206656419 | B72: Udruga maslinara "Drobnica" - Krk | C72: Program javnih potreba u poljoprivredi | E72: 70000 | F72: 70000 | G72: 59177.18 | H72: 129177.18
A73: 82907571905 | B73: Udruga vinara otoka Krka "Bukaleta" | C73: Program javnih potreba u poljoprivredi | E73: 10000 | F73: 10000 | H73: 10000
A74: 56390519158 | B74: Udruga proizvođača meda od kadulje | C74: Program javnih potreba u poljoprivredi | E74: 1000 | F74: 1000 | H74: 1000
A75: 76318722399 | B75: Udruga pčelara "Kadulja" otoka Krka | C75: Program javnih potreba u poljoprivredi | E75: 4000 | F75: 4000 | H75: 4000
A76: 04150008463 | B76: Hrvatska demokratska zajednica -HDZ | C76: Odluka o sredstvima za političke stranke Grada Krka | E76: 7000 | F76: 7000 | H76: 7000
A77: 82435880635 | B77: Hrvatska narodna stranka -HNS | C77: Odluka o sredstvima za političke stranke Grada Krka | E77: 14000 | F77: 14000 | H77: 14000
A78: 02010978731 | B78: Socijal -demokratska partija SDP | C78: Odluka o sredstvima za političke stranke Grada Krka | E78: 14700 | F78: 14700 | H78: 14700
A79: 08692235081 | B79: Hrvatska socijalnoliberalna stranka HSLS | C79: Odluka o sredstvima za političke stranke Grada Krka | E79: 7000 | F79: 7000 | H79: 7000
A80: 40857015687 | B80: Zelena stranka | C80: Odluka o sredstvima za političke stranke Grada Krka | E80: 7700 | F80: 7700 | H80: 7700
A81: 97439500228 | B81: Nezavisna lista David Mrakovčić | C81: Odluka o sredstvima za političke stranke Grada Krka | E81: 7000 | F81: 7000 | H81: 7000
A82: 11773779232 | B82: Darko Purić - nezavisni vijećnik | C82: Odluka o sredstvima za političke stranke Grada Krka | E82: 7000 | F82: 7000 | H82: 7000
A83: 26665813859 | B83: HSP- Hrvatska stranka prava | C83: Odluka o sredstvima za političke stranke Grada Krka | E83: 7000 | F83: 7000 | H83: 7000
A84: 41495097026 | B84: Primorsko goranski savez - PGS | C84: Odluka o sredstvima za političke stranke Grada Krka | E84: 36400 | F84: 36400 | H84: 36400
A85: 05433916893 | B85: Udruga "Moj otok" | C85: Građanske inicijative | E85: 35000 | F85: 17000 | H85: =G85+F85 -> 17000
A86: 04647134362 | B86: Udruga Livingstone | C86: Građanske inicijative | E86: 5000 | F86: 5000 | H86: =F86+G86 -> 5000
A87: 52251744471 | B87: Srednja škola Hrvatski kralj Zvonimir Krk | C87: Novigradsko proljeće, sufinanciranje maturalne zabave, izlet profesora SŠ | G87: 10960 | H87: =F87+G87 -> 10960
A88: 05478483564 | B88: Jedriličarski klub "Plav" | C88: Financiranje izdavanja "Monografije 140 godina JK Plav" | E88: 20000 | F88: 20000 | H88: 20000
A89: 05478483564 | B89: Jedriličarski klub "Plav" | C89: Projekt "Izgradnja hangara JK Plav" | E89: 360000 | F89: 19000 | H89: 19000
A90: 17069296058 | B90: Folklorno društvo Poljica | C90: Susret klapa i folklora Kuzmanja i zaključak vezan za podmirenje osnovnih troškova | G90: 13000 | H90: 13000
A91: 60174672203 | B91: Dubrovnik Sun | C91: Novigradsko proljeće | G91: 1820 | H91: =F91+G91 -> 1820
A92: 23640080861 | B92: Osnovna škola Fran Krsto Frankopan, Krk | C92: Projekt "Umjetnik i ja" | G92: 4000 | H92: 4000
A93: 27267656235 | B93: Osnovna škola Rivarela-škola stvaralaštva | C93: kotizacija-Ivor Hrast | G93: 400 | H93: 400
A94: 43047317885 | B94: Prirodoslovna i grafička škola Rijeka | C94: Sufinanciranje puta na "Globe"konferenciju u Coloradu-USA-dva učenika | G94: 1000 | H94: 1000
A95: 21365484017 | B95: Centar za rehabilitaciju FORTICA | C95: Projekt širenja mreže podrške lokalnoj zajednici | E95: 12729 | F95: 12729 | H95: =F95+G95 -> 12729
A96: 77600514446 | B96: Lag-Bjeloglavi sup | G96: 12562 | H96: 12562
A97: 60334254350 | B97: Područna vatrogasna zajednica otoka Krka-za DVD Krk | C97: Sporazum o sufinanc. | E97: 380000 | F97: 380000 | H97: 380000
A98: 64927145649 | B98: Turistička zajednica PGŽ | C98: Sufinanciranje promotivne kampanje oglaš.sa zračnim prijevoznicima | E98: 59734.46 | F98: 59734.46 | H98: 59734.46
A99: 38812088413 | B99: Turistička zajednica otoka Krka | C99: Financiranje rada "hladnog pogona" Turističke zajednice otoka Krka i zajedničkih programa | E99: 128950.4 | F99: 128950.4 | H99: 128950.4
A100: 38812088413 | B100: Turistička zajednica otoka Krka | C100: Sufinanc. Troškova prezentacije otoka Krka u Ljubljani, Učešće grada u troškovima za zgradu Trg sv. Kvirina | G100: 15556.23 | H100: 15556.23
A101: 07103881876 | B101: Centar za poljoprivredu i ruralni razvoj | E101: 65000 | F101: 65000 | H101: 65000
A102: 31501920607 | B102: Crveni križ Krk | C102: Proračun grada za 2016- zakonska obveza | E102: 120000 | F102: 120000 | G102: 7500 | H102: 127500
A103: 73790034362 | B103: Biskupija Krk - Kvarnerski Vez | G103: 3000 | H103: 3000
A104: 37088953042 | B104: Društvo sportske rekreacije "Primorje" | G104: 1000 | H104: 1000
A105: 35628238969 | B105: Lovačko društvo Zec Malinska | G105: 20000 | H105: 20000
A106: 96538191387 | B106: Klapa Vejanke | G106: 4000 | H106: 4000
A107: 19408676097 | B107: Šahovski klub - Draga | C107: Turnir | G107: 3000 | H107: =F107+G107 -> 3000
A108: 11546411511 | B108: Udruga Ti si OK | C108: Edukativni materijal za učenike 1. razreda | G108: 3250 | H108: 3250
A109: 94852031813 | B109: Župa sv. Fuske | C109: Sufinanciranje remonta zvona na župnoj crkvi u Linardićima | E109: 11000 | F109: 11000 | H109: 11000
A110: 73790034362 | B110: Župa sv. Jakova Kornić | C110: Sufinanciranje uređenja župne crkve i župne kuće u Korniću | E110: 50000 | F110: 50000 | H110: 50000
A111: 95123620882 | B111: Biskupija Krk, Župa sv. Mihovila | C111: Sufinanciranje sustava za grijanje u župnoj crkvi u Vrhu | E111: 38079.38 | F111: 38079.38 | H111: 38079.38
A112: 90806197014 | B112: Klub za športski ribolov na moru "Big OM" Omišalj | C112: Natjecanje Big game fishing | G112: 2000 | H112: 2000
A113: 99420440852 | B113: Udruga ljudi i običaji | C113: Suf. Festivala MIK | G113: 37000 | H113: 37000
A114: 10912945962 | B114: Pazinski kolegij- klasična gimnazija | G114: 1000 | H114: 1000
B115: Lara Nenadić | C115: 2.mjesto na Nacionalnom kadetskom prvenstvu (Veslački klub Glagoljaš) | G115: 3000 | H115: 3000
B116: Paola Jurešić | C116: Nagrada sportašu | G116: 500 | H116: =F116+G116 -> 500
B117: UKUPNO: | E117: =SUM(E4:E116) -> 3274293.24 | F117: =SUM(F4:F116) -> 2897193.24 | G117: =SUM(G4:G116) -> 416322.91 | H117: =G117+F117 -> 3313516.15
A119: *Ukupno knjiženo na kontima 381 tekuće donacije 3.242.600,22 i 382 kapitalne donacije 518.704,38 od čega je kn plaćeno neprofitnim udrugama 3.313.516,15 kn a 447.788,45 kn dobavljačima prema izdanom računu,ustanovama i sl. prema odluci Gradonačelnika,sporazumu,ugovoru (nije na popisu)
C122: REKAPITULACIJA
C124: NAZIV PROGRAMA | D124: POZICIJA PRORAČUNA 2016 | E124: PLANIRANO PREMA PROGRAMU | F124: OSTVARENO PREMA PROGRAMU * | G124: UKUPNO OSTVAREN PROGRAM | H124: RAZLIKA (ISPLATE IZ REZERVE PROGRAMA)
C125: Program za socijalno-humanitarne udruge, društva i ustanove Grada Krka | D125: 1218 | E125: =SUM(E4:E20) -> 270000 | F125: =SUM(F4:F20) -> 257700 | G125: =SUM(H4:H20) -> 284600 | H125: =G125-F125 -> 26900
C126: Program sporta | D126: 1217 | E126: =SUM(E21:E41) -> 1020000 | F126: =SUM(F21:F41) -> 1018000 | G126: =SUM(H21:H41) -> 1098097.5 | H126: =G126-F126 -> 80097.5
C127: Program javnih potreba u kulturi | D127: 1260 | E127: =SUM(E42:E59) -> 333000 | F127: =SUM(F42:F59) -> 329200 | G127: =SUM(H42:H59) -> 415800 | H127: 86600
C128: Program javnih potreba u tehničkoj kulturi | D128: 1222 | E128: =SUM(E60:E69) -> 153000 | F128: =SUM(F60:F69) -> 153000 | G128: =SUM(H60:H69) -> 172000 | H128: 19000
C129: Program javnih potreba u poljoprivredi | D129: 2115 | E129: =SUM(E70:E75) -> 105000 | F129: =SUM(F70:F75) -> 105000 | G129: =SUM(H70:H75) -> 164177.18 | H129: 59177.18
C130: Odluka o sredstvima za političke stranke Grada Krka | D130: 2104 | E130: =SUM(E76:E84) -> 107800 | F130: =SUM(F76:F84) -> 107800 | G130: =SUM(H76:H84) -> 107800 | H130: 0
C131: Građanske inicijative | D131: 1223 | E131: =SUM(E85:E86) -> 40000 | F131: =SUM(F85:F86) -> 22000 | G131: =SUM(H85:H86) -> 22000 | H131: 0
C132: * U koloni ostvareno prema Programu prikazana su sredstva doznačena udrugama za one udruge koje imaju zaključene ugovore
C133: Rashodi koji su realizirani iz rezerve Programa a nisu isplaćeni temeljem ugovora nisu uključeni
C135: Ostalo - izvan programa | E135: =SUM(E87:E116) -> 1245493.24 | F135: =SUM(F87:F116) -> 904493.24 | G135: =SUM(H87:H116) -> 1049041.47
C136: Ukupno: | E136: =SUM(E125:E135) -> 3274293.24 | F136: =SUM(F125:F135) -> 2897193.24 | G136: =SUM(G125:G135) -> 3313516.15

Sheet Popis donacija do 31.12.2020
B1: GRAD KRK - IZVJEŠTAJ O DONACIJAMA IZ PRORAČUNA OD 01.01. - 31.12.2020.
C2: 1. a) UDRUGAMA PREMA PROGRAMIMA JAVNIH POTREBA I POLITIČKIM STRANKAMA
B3: 1 | C3: 2 | D3: 3 | E3: 4 | F3: 5 | G3: 6 | H3: 7 | I3: 9
A4: Red.br. | B4: OIB primatelja donacije | C4: Naziv primatelja donacije /šifra PP | D4: Naziv programa ili pojedinačne donacije | E4: Pozicija | F4: Planirano prema programu javnih potreba iz kolone 3.-ugovor | G4: Ostvarena donacija po programu iz kolone 3. | H4: Ostale donacije prema odluci Gradonačelnika | I4: Ukupno donacija udruzi 2020 9=6+7
A5: 1. | B5: 13644894582 | C5: Udruga HVIDRA, otok Krk | D5: Program za socijalno-humanitarne udruge, društva i ustanove Grada Krka | E5: 1218 | F5: 12500 | G5: 12500 | I5: =G5+H5 -> 12500
A6: 2. | B6: 04341489477 | C6: Udruga antifašističkih boraca Otoka Krka | D6: Program za socijalno-humanitarne udruge, društva i ustanove Grada Krka | E6: 1218 | F6: 20000 | G6: 20000 | I6: =G6+H6 -> 20000
A7: 3. | B7: 87108816444 | C7: Udruga umirovljenika Grada Krka | D7: Program za socijalno-humanitarne udruge, društva i ustanove Grada Krka | E7: 1218 | F7: 25000 | G7: 25000 | I7: 25000
A8: 4. | B8: 67753818672 | C8: Udruga umirovljenika Poljica - Šotovento | D8: Program za socijalno-humanitarne udruge, društva i ustanove Grada Krka | E8: 1218 | F8: 25000 | G8: 9820 | I8: 9820
A9: 5. | B9: 71954510830 | C9: Udruga osoba s mišićnom distrofijom PGŽ | D9: Program za socijalno-humanitarne udruge, društva i ustanove Grada Krka | E9: 1218 | F9: 1000 | G9: 1000 | I9: 1000
A10: 6. | B10: 33480204219 | C10: Caritas Biskupije Krk | D10: Program za socijalno-humanitarne udruge, društva i ustanove Grada Krka | E10: 1218 | F10: 5000 | G10: 5000 | H10: 3000 | I10: 8000 | J10: iznos od 3.000,00 knjižen na poziciju 1269
A11: 7. | B11: 76455622311 | C11: Udruga invalida kvarnerskih otoka | D11: Program za socijalno-humanitarne udruge, društva i ustanove Grada Krka | E11: 1218 | F11: 4500 | G11: 4497.63 | I11: 4497.63
A12: 8. | B12: 60978973343 | C12: Zajednica Talijana Krk | D12: Program za socijalno-humanitarne udruge, društva i ustanove Grada Krka | E12: 1218 | F12: 3500 | G12: 3500 | I12: 3500
A13: 9. | B13: 80713734687 | C13: Udruga slijepih Primorsko-goranske županije | D13: Program za socijalno-humanitarne udruge, društva i ustanove Grada Krka | E13: 1218 | F13: 1000 | G13: 1000 | I13: =G13+H13 -> 1000
A14: 10. | B14: 17299379476 | C14: Udruga gluhih i nagluhih | D14: Program za socijalno-humanitarne udruge, društva i ustanove Grada Krka | E14: 1218 | F14: 1000 | G14: 1000 | I14: 1000
A15: 11. | B15: 61916000339 | C15: Udruga za zaštitu životinja "Felix" | D15: Program za socijalno-humanitarne udruge, društva i ustanove Grada Krka | E15: 1218 | F15: 2000 | G15: 0 | I15: 0
A16: 12. | B16: 08002590MB | C16: Udruga veterana Domovinskog rata | D16: Program za socijalno-humanitarne udruge, društva i ustanove Grada Krka | E16: 1218 | F16: 12500 | G16: 12414.67 | I16: 12414.67
A17: 13. | B17: 26889141768 | C17: Klub liječenih ovisnika otoka Krka "Gromača" | D17: Program za socijalno-humanitarne udruge, društva i ustanove Grada Krka | E17: 1218 | F17: 10000 | G17: 10000 | I17: 10000
A18: 14. | B18: 11268954050 | C18: Pokret za život | D18: Program za socijalno-humanitarne udruge, društva i ustanove Grada Krka | E18: 1218 | F18: 1500 | G18: 1500 | I18: 1500
A19: 15. | B19: 9165632246 | C19: Društvo multiple skleroze PGŽ | D19: Program za socijalno-humanitarne udruge, društva i ustanove Grada Krka | E19: 1218 | F19: 1500 | G19: 1500 | I19: 1500
A20: 16. | B20: 95951192179 | C20: Udruga za terapijsko jahanje "Moj prijatelj" Njivice | D20: Program za socijalno-humanitarne udruge, društva i ustanove Grada Krka | E20: 1218 | F20: 1500 | G20: 1500 | I20: 1500
A21: 17. | B21: 48646835982 | C21: Udruga žena operiranih dojki "Nada" Rijeka | D21: Program za socijalno-humanitarne udruge, društva i ustanove Grada Krka | E21: 1218 | F21: 1000 | G21: 1000 | I21: 1000
A22: 18. | B22: 12632735476 | C22: Udruga specijalne policije iz Domovinskog rata "Ajkula" | D22: Program za socijalno-humanitarne udruge, društva i ustanove Grada Krka | E22: 1218 | F22: 5000 | G22: 5000 | I22: =G22+H22 -> 5000
A23: 19. | B23: 36007579737 | C23: Udruga GAIA NOVA | D23: Program za socijalno-humanitarne udruge, društva i ustanove Grada Krka | E23: 1218 | F23: 5000 | G23: 5000 | H23: 4500 | I23: =G23+H23 -> 9500 | J23: iznos od 4.500,00 kn knjižen na poziciju 1269
A24: 20. | B24: 73460568220 | C24: Udruga Albanske nacionalne manjine | D24: Program za socijalno-humanitarne udruge, društva i ustanove Grada Krka | E24: 1218 | F24: 2500 | G24: 2496.62 | I24: 2496.62
A25: 21. | B25: 05478483564 | C25: Jedriličarski klub "Plav" | D25: Program sporta | E25: 1217 | F25: 45000 | G25: 45000 | I25: 45000
A26: 22. | B26: 36756573211 | C26: Judo klub Krk | D26: Program sporta | E26: 1217 | F26: 32500 | G26: 32500 | I26: 32500
A27: 23. | B27: 03533054678 | C27: Nogometni klub Krk | D27: Program sporta | E27: 1217 | F27: 195000 | G27: 194999.64 | I27: 194999.64
A28: 24. | B28: 86232456623 | C28: Boćarski klub Krk | D28: Program sporta | E28: 1217 | F28: 22500 | G28: 22500 | I28: 22500
A29: 25. | B29: 45131977269 | C29: Košarkaški klub Krk | D29: Program sporta | E29: 1217 | F29: 80000 | G29: 75313.95 | H29: 13140 | I29: 88453.95 | J29: iznos od 13.140,00 knjižen na poziciju 2108.1
A30: 26. | B30: 08000507MB | C30: Boćarski klub Brzac | D30: Program sporta | E30: 1217 | F30: 25000 | G30: 24587.82 | H30: 350 | I30: 24937.82 | J30: iznos od 350,00 kn knjižen na poziciju 2108.1
A31: 27. | B31: 96996266947 | C31: Atletski klub | D31: Program sporta | E31: 1217 | F31: 20000 | G31: 20000 | H31: 2990 | I31: 22990 | J31: iznos od 2.990,00 knjižen na poziciju 2108.1
A32: 28. | B32: 26187625353 | C32: ŠRD "Glavoč" Linardići | D32: Program sporta | E32: 1217 | F32: 3000 | G32: 3000 | I32: 3000
A33: 29. | B33: 98470469935 | C33: Š.R.D. "Čavlena", Poljica | D33: Program sporta | E33: 1217 | F33: 3000 | G33: 3000 | I33: 3000
A34: 30. | B34: 3010199207 | C34: Š.R.D. Lovrata | D34: Program sporta | E34: 1217 | F34: 20000 | G34: 20000 | H34: 1350 | I34: 21350 | J34: iznos od 1.350,00 knjižen na poziciju 2108.1
A35: 31. | B35: 21584915136 | C35: Š.R.D. "Poteljan" - Brzac | D35: Program sporta | E35: 1217 | F35: 3000 | G35: 3000 | I35: 3000
A36: 32. | B36: 34791402277 | C36: U.Š.R. "Pepice", Krk | D36: Program sporta | E36: 1217 | F36: 4000 | G36: 4000 | I36: 4000
A37: 33. | B37: 22800276467 | C37: Karate klub "Croatia" | D37: Program sporta | E37: 1217 | F37: 26328.97 | G37: 26328.97 | H37: 15000 | I37: 41328.97 | J37: iznos od 15.000,00 knjižena na poziciju 2108.1
A38: 34. | B38: 62150220652 | C38: Streličarski klub Maura Kal, Krk | D38: Program sporta | E38: 1217 | F38: 17500 | G38: 17500 | H38: 675 | I38: 18175 | J38: iznos od 675,00 knjižen na poziciju 2108.1
A39: 35. | B39: 12308261479 | C39: Wakeboard klub , Krk | D39: Program sporta | E39: 1217 | F39: 7500 | G39: 7500 | I39: 7500
A40: 36. | B40: 51467769782 | C40: STK Malinska-Dubašnica, Malinska | D40: Program sporta | E40: 1217 | F40: 27500 | G40: 27353.7 | H40: 7400 | I40: 34753.7 | J40: iznos od 2.400,00 knjižen na poziciju 2108.1
A41: 37. | B41: 92942299310 | C41: Veslački klub "Glagoljaš" - Omišalj | D41: Program sporta | E41: 1217 | F41: 7500 | G41: 7500 | I41: 7500
A42: 38. | B42: 43783677249 | C42: Nogometni klub "Vihor" Baška | D42: Program sporta | E42: 1217 | F42: 5000 | G42: 5000 | I42: 5000
A43: 39. | B43: 91785441723 | C43: KŠR "Sv. Fuska" Pinezići - Skrpčići | D43: Program sporta | E43: 1217 | F43: 3000 | G43: 3000 | I43: 3000
A44: 40. | B44: 30112731589 | C44: Streljački klub Bodulka Krk, Krk | D44: Program sporta | E44: 1217 | F44: 2500 | G44: 2453.69 | I44: 2453.69
A45: 41. | B45: 40266992361 | C45: Škola sporta "Zvrk Krk" Krk | D45: Program sporta | E45: 1217 | F45: 2500 | G45: 2500 | I45: 2500
A46: 42. | B46: 89847320849 | C46: DSR "Centar aktivnosti Krk" | D46: Program sporta | E46: 1217 | F46: 6500 | G46: 6500 | I46: 6500
A47: 43. | B47: 63365024765 | C47: Golf klub Krk | D47: Program sporta | E47: 1217 | F47: 2500 | G47: 2500 | I47: 2500
A48: 44. | B48: 43320920196 | C48: D.P.Z. zbor "Mići boduli" | D48: Program javnih potreba u kulturi | E48: 1260 | F48: 30000 | G48: 30000 | I48: 30000
A49: 45. | B49: 75741049188 | C49: Gradska glazba Krk, Krk | D49: Program javnih potreba u kulturi | E49: 1260 | F49: 37500 | G49: 37419.71 | I49: 37419.71
A50: 46. | B50: 50403072234 | C50: Gradski pjevački zbor - Krk | D50: Program javnih potreba u kulturi | E50: 1260 | F50: 5000 | G50: 4749.15 | I50: 4749.15
A51: 47. | B51: 46553375003 | C51: Katedra čakavskog sabora - Kornić | D51: Program javnih potreba u kulturi | E51: 1260 | F51: 12500 | G51: 12437.36 | I51: 12437.36
A52: 48. | B52: 02948679852 | C52: K.U.D. Vrh | D52: Program javnih potreba u kulturi | E52: 1260 | F52: 10000 | G52: 10000 | I52: 10000
A53: 49. | B53: 49047582634 | C53: Kulturno društvo Kornić | D53: Program javnih potreba u kulturi | E53: 1260 | F53: 10000 | G53: 3000 | I53: 3000
A54: 50. | B54: 17069296058 | C54: Folklorno društvo Poljica | D54: Program javnih potreba u kulturi | E54: 1260 | F54: 10000 | G54: 5393.36 | I54: 5393.36
A55: 51. | B55: 86856424924 | C55: Multimedijalna udruga Krčka beseda Krk | D55: Program javnih potreba u kulturi | E55: 1260 | F55: 5000 | G55: 5000 | I55: 5000
A56: 52. | B56: 96538191387 | C56: Ženska klapa "Vejanke" | D56: Program javnih potreba u kulturi | E56: 1260 | F56: 5000 | G56: 5000 | I56: 5000
A57: 53. | B57: 66601934965 | C57: Plesna skupina Monfrina - Krk | D57: Program javnih potreba u kulturi | E57: 1260 | F57: 2500 | G57: 2500 | I57: 2500
A58: 54. | B58: 04345582762 | C58: Udruga sopaca otoka Krka | D58: Program javnih potreba u kulturi | E58: 1260 | F58: 3000 | G58: 3000 | I58: 3000
A59: 55. | B59: 12016859209 | C59: Udruga Knezovi krčki Frankopan | D59: Program javnih potreba u kulturi | E59: 1260 | F59: 22704.46 | G59: 21389.55 | I59: 21389.55
A60: 56. | B60: 08001469 | C60: Karnevalska udruga "Povero Keko" | D60: Program javnih potreba u kulturi | E60: 1260 | F60: 10000 | G60: 10000 | I60: 10000
A61: 57. | B61: 21349394661 | C61: Udruga Kreativni Krk | D61: Program javnih potreba u kulturi | E61: 1260 | F61: 80415.64 | G61: 80415.64 | H61: 30000 | I61: 110415.64 | J61: iznos od 25.000,00 knjižen na poziciju 2105, a iznos od 5.000,00 knjižen na poziciju 1221.5
A62: 58. | B62: 45092136734 | C62: Povijesno društvo Otoka Krka | D62: Program javnih potreba u kulturi | E62: 1260 | F62: 2500 | G62: 2500 | I62: 2500
A63: 59. | B63: 01051197257 | C63: Dječja plesna skupina Povero Keko | D63: Program javnih potreba u kulturi | E63: 1260 | F63: 5000 | G63: 5000 | I63: 5000
A64: 60. | B64: 10569544707 | C64: Udruga Ćuk | D64: Program javnih potreba u kulturi | E64: 1260 | F64: 20000 | G64: 1530.28 | I64: 1530.28
A65: 61. | B65: 24375160926 | C65: Mažoretkinje otoka Krka | D65: Program javnih potreba u kulturi | E65: 1260 | F65: 10000 | G65: 10000 | I65: 10000
A66: 62. | B66: 23708870261 | C66: Šahovski klub - Krk | D66: Program javnih potreba u tehničkoj kulturi | E66: 1222 | F66: 23500 | G66: 23500 | I66: 23500
A67: 63. | B67: 60024777398 | C67: Klub informatičara otoka Krka - KIOK | D67: Program javnih potreba u tehničkoj kulturi | E67: 1222 | F67: 12500 | G67: 11170.25 | I67: 11170.25
A68: 64. | B68: 92972369942 | C68: Planinarsko društvo Obzova Njivice | D68: Program javnih potreba u tehničkoj kulturi | E68: 1222 | F68: 5000 | G68: 4675 | I68: 4675
A69: 65. | B69: 72556929505 | C69: Foto klub Krk | D69: Program javnih potreba u tehničkoj kulturi | E69: 1222 | F69: 5000 | G69: 5000 | H69: 4000 | I69: 9000 | J69: iznos od 4.000,00 kn knjižen na poziciju 1269
A70: 66. | B70: 34876825002 | C70: Zrakoplovni klub otoka Krka | D70: Program javnih potreba u tehničkoj kulturi | E70: 1222 | F70: 2500 | G70: 1860 | I70: 1860
A71: 67. | B71: 57026135581 | C71: Filatelističko društvo Krk | D71: Program javnih potreba u tehničkoj kulturi | E71: 1222 | F71: 5000 | G71: 5000 | I71: 5000
A72: 68. | B72: 17305749299 | C72: Auto klub Krk | D72: Program javnih potreba u tehničkoj kulturi | E72: 1222 | F72: 25000 | G72: 25000 | I72: 25000
A73: 69. | B73: 91063173829 | C73: Moto klub Krk - Fluminense riders MC | D73: Program javnih potreba u tehničkoj kulturi | E73: 1222 | F73: 1500 | G73: 1500 | I73: 1500
A74: 70. | B74: 67421370315 | C74: Lovačko društvo "Kamenjarka" | D74: Program javnih potreba u poljoprivredi | E74: 2115 | F74: 5000 | G74: 5000 | I74: 5000
A75: 71. | B75: 89342153826 | C75: Lovačko društvo "Šljuka" - Krk | D75: Program javnih potreba u poljoprivredi | E75: 2115 | F75: 5000 | G75: 5000 | I75: 5000
A76: 72. | B76: 35628238969 | C76: Lovačko društvo "Zec" Malinska | D76: Program javnih potreba u poljoprivredi | E76: 2115 | F76: 5000 | G76: 5000 | I76: =G76+H76 -> 5000
A77: 73. | B77: 50206656419 | C77: Udruga maslinara "Drobnica" - Krk | D77: Program javnih potreba u poljoprivredi | E77: 2115 | F77: 19700 | G77: 19700 | I77: =G77+H77 -> 19700
A78: 74. | B78: 82907571905 | C78: Udruga vinara otoka Krka "Bukaleta" | D78: Program javnih potreba u poljoprivredi | E78: 2115 | F78: 5000 | G78: 5000 | I78: 5000
A79: 75. | B79: 56390519158 | C79: Udruga proizvođača meda od kadulje | D79: Program javnih potreba u poljoprivredi | E79: 2115 | F79: 1000 | G79: 1000 | I79: 1000
A80: 76. | B80: 76318722399 | C80: Udruga pčelara "Kadulja" otoka Krka | D80: Program javnih potreba u poljoprivredi | E80: 2115 | F80: 5200 | G80: 5200 | I80: 5200
A81: 77. | B81: 76514851143 | C81: Udruga "Progres" | D81: Program javnih potreba u poljoprivredi | E81: 2115 | F81: 15000 | G81: 15000 | I81: 15000
A82: 78. | B82: 46319922976 | C82: Udruga sirara Krk | D82: Program javnih potreba u poljoprivredi | E82: 2115 | F82: 10000 | G82: 10000 | I82: 10000
A83: 79. | B83: 04150008463 | C83: Hrvatska demokratska zajednica -HDZ | D83: Odluka o raspoređivanju sredstava za financiranje političkih stranaka i kandidacijskih lista grupe birača zastupljenih u Gradskom vijeću Grada Krka (“SN PGŽ“, broj 19/17) i Odluka o smanjenju sredstava za financiranje političkih stranaka i kandidacijskih lista grupe birača zastupljenih u Gradskom vijeću Grada Krka u 2020. godini (“SN PGŽ“, broj 25/20), | E83: 2104 | F83: 7000 | G83: 7000 | I83: 7000
A84: 80. | B84: 02010978731 | C84: Socijal -demokratska partija SDP | D84: Odluka o raspoređivanju sredstava za financiranje političkih stranaka i kandidacijskih lista grupe birača zastupljenih u Gradskom vijeću Grada Krka (“SN PGŽ“, broj 19/17) i Odluka o smanjenju sredstava za financiranje političkih stranaka i kandidacijskih lista grupe birača zastupljenih u Gradskom vijeću Grada Krka u 2020. godini (“SN PGŽ“, broj 25/20), | E84: 2104 | F84: 7350 | G84: 7350 | I84: 7350
A85: 81. | B85: 97439500228 | C85: Kandidacijska lista grupe birača - David Mrakovčić - dana 27.11. 2020 sredstva vraćena u Proračun Grada Krka | D85: Odluka o raspoređivanju sredstava za financiranje političkih stranaka i kandidacijskih lista grupe birača zastupljenih u Gradskom vijeću Grada Krka (“SN PGŽ“, broj 19/17) i Odluka o smanjenju sredstava za financiranje političkih stranaka i kandidacijskih lista grupe birača zastupljenih u Gradskom vijeću Grada Krka u 2020. godini (“SN PGŽ“, broj 25/20), | E85: 2104 | F85: 3500 | G85: 3500 | I85: 3500
B86: 11773779232 | C86: Kandidacijska lista grupe birača - Darko Purić | D86: Odluka o raspoređivanju sredstava za financiranje političkih stranaka i kandidacijskih lista grupe birača zastupljenih u Gradskom vijeću Grada Krka (“SN PGŽ“, broj 19/17) i Odluka o smanjenju sredstava za financiranje političkih stranaka i kandidacijskih lista grupe birača zastupljenih u Gradskom vijeću Grada Krka u 2020. godini (“SN PGŽ“, broj 25/20), | E86: 2104 | F86: 3500 | G86: 3500 | I86: 3500
A87: 82. | B87: 26665813859 | C87: HSP- Hrvatska stranka prava | D87: Odluka o raspoređivanju sredstava za financiranje političkih stranaka i kandidacijskih lista grupe birača zastupljenih u Gradskom vijeću Grada Krka (“SN PGŽ“, broj 19/17) i Odluka o smanjenju sredstava za financiranje političkih stranaka i kandidacijskih lista grupe birača zastupljenih u Gradskom vijeću Grada Krka u 2020. godini (“SN PGŽ“, broj 25/20), | E87: 2104 | F87: 3500 | G87: 3500 | I87: 3500
A88: 83. | B88: 41495097026 | C88: Primorsko goranski savez - PGS | D88: Odluka o raspoređivanju sredstava za financiranje političkih stranaka i kandidacijskih lista grupe birača zastupljenih u Gradskom vijeću Grada Krka (“SN PGŽ“, broj 19/17) i Odluka o smanjenju sredstava za financiranje političkih stranaka i kandidacijskih lista grupe birača zastupljenih u Gradskom vijeću Grada Krka u 2020. godini (“SN PGŽ“, broj 25/20), | E88: 2104 | F88: 21350 | G88: 21350 | I88: 21350
A89: 84. | B89: 39757690131 | C89: Unija Kvarner | D89: Odluka o raspoređivanju sredstava za financiranje političkih stranaka i kandidacijskih lista grupe birača zastupljenih u Gradskom vijeću Grada Krka (“SN PGŽ“, broj 19/17) i Odluka o smanjenju sredstava za financiranje političkih stranaka i kandidacijskih lista grupe birača zastupljenih u Gradskom vijeću Grada Krka u 2020. godini (“SN PGŽ“, broj 25/20), | E89: 2104 | F89: 3500 | G89: 3500 | I89: 3500
A90: 85. | B90: 39821442260 | C90: Kandidacijska lista grupe birača - Goran Marević | D90: Odluka o raspoređivanju sredstava za financiranje političkih stranaka i kandidacijskih lista grupe birača zastupljenih u Gradskom vijeću Grada Krka (“SN PGŽ“, broj 19/17) i Odluka o smanjenju sredstava za financiranje političkih stranaka i kandidacijskih lista grupe birača zastupljenih u Gradskom vijeću Grada Krka u 2020. godini (“SN PGŽ“, broj 25/20), | E90: 2104 | F90: 3500 | G90: 3500 | I90: 3500
A91: 86. | B91: 05433916893 | C91: Udruga "Moj otok" | D91: Građanske inicijative | E91: 1223 | F91: 10000 | G91: 10000 | H91: 5000 | I91: 15000 | J91: iznos od 5.000,00 kn knjižen na poziciju 1269
A92: 87. | B92: 64682437286 | C92: Udruga Rukotvorine Krk | D92: Građanske inicijative | E92: 1223 | F92: 5500 | G92: 4750 | H92: 4666.43 | I92: 9416.43 | J92: iznos od 4.666,43 knjižen na poziciju 1269
A93: 88. | B93: 27997238954 | C93: Udruga žene za otok | D93: Građanske inicijative | E93: 1223 | F93: 2500 | G93: 2500 | I93: 2500
A94: 89. | B94: 71387140029 | C94: Društvo prijatelja Hajduka otok Krk | D94: Građanske inicijative | E94: 1223 | F94: 1500 | G94: 1500 | I94: 1500
A95: 90. | B95: 49497758348 | C95: Udruga "Plavo bijeli otok" | D95: Građanske inicijative | E95: 1223 | F95: 2500 | G95: 2500 | H95: 5000 | I95: 7500 | J95: iznos od 5.000,00 knjižen na poziciju 1269
C96: 1. b - POTPORE MALIH VRIJEDNOSTI I ISPLATE NEPROFITNIM ORGANIZACIJAMA
A97: 91. | B97: 33806153509 | C97: Udruga "Hrvatski otočni proizvod" | D97: Ugovor o dodjeli financijskih potpora malih vrijednosti | E97: 1269 | F97: 5000 | G97: 5000 | I97: =G97+H97 -> 5000
A98: 92. | B98: 61350693967 | C98: Ženski odbojkaški klub Krk | D98: Ugovor o dodjeli financijskih potpora malih vrijednosti | E98: 1269 | F98: 1785 | G98: 1785 | I98: =G98+H98 -> 1785
A99: 93. | B99: 29763120474 | C99: Vijeće Srpske nacionalne manjine grada Krka | D99: Odluka o načinu financiranja te određivanju naknade troškova i nagrade za rad članovima vijeća nacionalnih manjina (SN PGŽ br. 33/19) i Odluka o smanjenju naknade troškova i nagrade za rad članovima vijeća nacionalnih manjina Grada Krka u 2020. godini (SN PGŽ br. 25/20) | E99: 2101.3 | F99: 17565 | G99: 17565 | H99: 1339.64 | I99: =G99+H99 -> 18904.64
A100: 94. | B100: 52251744471 | C100: Srednja škola Hrvatski kralj Zvonimir Krk | D100: Financijska pomoć za održavanje maturalne zabave | E100: 2105 | H100: 2000 | I100: 2000
A101: 95. | B101: 77600514446 | C101: Lag - "Kvarnerski otoci" | D101: LAG Kvarnerski otoci za 2020. godinu, | E101: 2121 | H101: 12562 | I101: 12562
A102: 96. | B102: 60334254350 | C102: Područna vatrogasna zajednica otoka Krka-za DVD Krk | D102: Sporazum o financiranju vatrogastva, program posebnih mjera zaštite od požara | E102: 1228 | F102: 460000 | G102: 438664.18 | H102: 15000 | I102: =G102+H102 -> 453664.18 | J102: iznos od 15.000,00 knjižena na poziciju 1228.1
A103: 97. | B103: 38812088413 | C103: Turistička zajednica otoka Krka | D103: Financiranje rada "hladnog pogona" Turističke zajednice otoka Krka i zajedničkih programa | E103: 1221.2 | F103: 97067.32 | G103: 97067.32 | H103: 9243.84 | I103: 106311.16
A104: 98. | B104: 31501920607 | C104: Gradsko društvo Crvenog križa Krk | D104: Proračun grada za 2020- prema Zakonu o Hrvatskom Crvenom križu | E104: 1219 | F104: 120000 | G104: 120000 | H104: 18675 | I104: 138675 | J104: iznos od 18.675,00 knjižen na poziciju 1219.1
A105: 99. | B105: 93890925326 | C105: Udruga Hrvatskih lječnika dragovoljaca 1990. - 1991. | D105: Financijska potpora za tiskanje monografije "Hrvatski sanitet ličke bojišnice" | E105: 1220 | H105: 4000 | I105: 4000
A106: 100. | B106: 89919564697 | C106: Županijska lučka Uprava Krk | D106: Sufinanciranje radova na sanaciji podmorskog i nadmorskog dijela istočne obalne konstrukcije Ribarskog gata u luci Krk | E106: 3272.1 | F106: 968827.6 | G106: 968827.6 | I106: 968827.6
A107: 101. | B107: 83149865195 | C107: Lovačko društvo "Orebica" | D107: Praćenje i izlov čaglja i divlje svinje kao alohtone divljači na otoku Krku, Sufinanciranje nabave termovizijske kamere za lov čaglja | E107: 3241.1 | F107: 33642.86 | G107: 33642.86 | H107: 8934 | I107: 42576.86
A108: 102. | B108: 2164099630 | C108: Hrvatsko književno društvo | D108: Financijska potpora za izdavanje zbirke poezije "U potrazi za nirvanom" | E108: 1220 | H108: 2000 | I108: =G108+H108 -> 2000
A109: 103. | B109: 72527253659 | C109: Hrvatski Crveni križ | D109: Pomoć uslijed potresa za Sisačko - moslovačku županiju | E109: 2108.1 | H109: 50000 | I109: =G109+H109 -> 50000
A110: 104. | B110: 75782933075 | C110: Udruga Termen Malinska | D110: Eko akcija čišćenja krčkog podmorja 2020 | E110: 1269 | H110: 5000 | I110: 5000
A111: 105. | B111: 12027549767 | C111: Udruga "Tragom hrvatske baštine" | D111: Sponzorstvo izložbe "Tragom hrvatske baštine" | E111: 2108.1 | H111: 3000 | I111: 3000
A112: 106. | C112: Biskupski ordinarijat Kotor | D112: Financijska potpora za bistu vikara Kotorske biskupije don Ante Belana | E112: 2108.1 | H112: 2000 | I112: 2000
A113: 107. | C113: UKUPNO 1 b) | F113: =SUM(F97:F112) -> 1703887.78 | G113: =SUM(G97:G112) -> 1682551.96 | H113: 133754.48 | I113: 1816306.44
A115: 108. | C115: UKUPNO *: a+b | F115: =SUM(F5:F112) -> 2913436.85 | G115: =SUM(G5:G112) -> 2834708.95 | H115: =SUM(H5:H112) -> 230825.91 | I115: =H115+G115 -> 3065534.86
B117: 2. OSTALO
B118: OIB | C118: Naziv pravnog subjekta | D118: Opis uplate | E118: Pozicija | H118: Ostalo prema odluci Gradonačelnika | I118: Ukupno
A119: 109. | B119: 32289496287 | C119: Arvalis j.d.o.o. | D119: Krčki val | E119: 1220 | H119: 11000 | I119: =G119+H119 -> 11000
A120: 110. | B120: 45212948769 | C120: Naklada Kvarner d.o.o. | D120: Knjiga: Organizacija parkiranja u urbanim područjima | E120: 1220 | H120: 1999.99 | I120: =G120+H120 -> 1999.99
A121: 111. | B121: 19924269151 | C121: Srđan j.d.o.o. | D121: Fotomonografija Ljepote otoka Krka | E121: 1220 | H121: 8999.55 | I121: 8999.55
A122: 112. | B122: 62702092724 | C122: Glosa d.o.o. | D122: Krčki kalendar 2021 | E122: 1220 | H122: 7000 | I122: 7000
A123: 113. | B123: 52410327915 | C123: Laval d.o.o. | D123: Pano 3D - 5 kom, za izložbu K.O.Z.M.O.G.O.N.I.J.E | E123: 2108.1 | H123: 1481.25 | I123: 1481.25
A124: 114. | B124: 40081859293 | C124: Iglu sport d.o.o. | D124: Oprema za penjalište u Baški | E124: 2108.1 | H124: 2000 | I124: 2000
A125: 115. | B125: 50522457221 | C125: Nird d.o.o. | D125: Igračke za djecu povodom sv. Nikole | E125: 1227 | H125: 59924.85 | I125: =G125+H125 -> 59924.85
A126: 116. | B126: 21580435987 | C126: AMD PROMET d.o.o. | D126: Igračke za djecu povodom sv. Nikole | E126: 1227 | H126: 24691.13 | I126: 24691.13
A127: 117. | B127: 99503692062 | C127: Ugostiteljski obrt Maritim | D127: Potpisivanje Povelje o prijateljstvu i suradnji sa gradom Vukovarom (prigodni ručak i noćenja) | E127: 2105 | H127: 3250 | I127: 3250
A128: 118. | B128: 22639946935 | C128: Hoteli Krk d.o.o. | D128: Prigodni ručak - delegacija grada Vukovara | E128: 2105 | H128: 3488 | I128: 3488
A129: 119. | B129: 99503692062 | C129: Ugostiteljski obrt Maritim | D129: Okrijepa povodom primopredaje vatrogasnog vozila JVP Krk | E129: 2105 | H129: 9055 | I129: 9055
A130: 120. | B130: 83741593151 | C130: Krčke vile d.o.o. | D130: Catering povodom Božićnog prijema 19.12.2019. | E130: 2105 | H130: 13261 | I130: 13261
A131: 121. | B131: 58321014885 | C131: Mateo d.o.o. | D131: Vino - zdravica gradonačelnika 31.12.2019. | E131: 2105 | H131: 1300 | I131: 1300
A132: 122. | B132: 66548420466 | C132: Trgovina Krk d.d. | D132: Bomboni za djecu - povodom Dana ružičastih majica, Poklon bonovi i bonbonijere kao prigodni poklon nagrađenim stolnotenisačicama, Ugovor o jamstvu plaćanja kupljenih proizvoda - primanje za spasioce | E132: 2105 | H132: 4018.82 | I132: 4018.82
A133: 123. | B133: 79367743100 | C133: Obrt Marija, vl. Boris Svitek | D133: Troškovi Udruge umirovljenika Poljica Šotovento | E133: 2105 | H133: 3000 | I133: 3000
A134: 124. | B134: 3589417293 | C134: Mirnovec pirotehnika d.o.o. | D134: Usluga organizacije i izvođenja vatrometa 25.02.2020. - Krčki karneval | E134: 2105 | H134: 20750 | I134: 20750
A135: 125. | B135: 92285520719 | C135: Convivium d.o.o. | D135: Organizacija manifestacije povodom "Dana žena" u Krku 7.3.2020. | E135: 2105 | H135: 31250 | I135: 31250
A136: 126. | B136: 44110106406 | C136: Novi list d.d. | D136: Pokroviteljstvo priloga Maturanti i prvašići 2019./2020. | E136: 2105 | H136: 2500 | I136: 2500
A137: 127. | B137: 86401316610 | C137: MAMUT, obrt za usluge, vl. Izidor Vasilić | D137: Najam razglasne opreme - Karnevalska povorka Rijeka | E137: 2105 | H137: 2100 | I137: 2100
A138: 128. | B138: 58514309799 | C138: Autotaksi Mile, obrt za usluge, vl. Mile Gušić | D138: Financiranje prijevoza nogometaša NK Krk na turnir u Međugorje | E138: 2105 | H138: 5000 | I138: 5000
A139: 129. | B139: 9072502343 | C139: GabiFlores d.o.o. | D139: Ruže za dan žena, Buketi - prigodni piklon nagrađenim sportašicama, Cvijeće povodom Dana zahvanosti, Svijeće povodom Dana sjećanja na Vukovar | E139: 2105 | H139: 6910 | I139: 6910
A140: 130. | B140: 34245378800 | C140: Obrt Gromača, vl. Emil Braut | D140: Prijevoz maškarane skupine Povero Keko | E140: 2105 | H140: 7500 | I140: 7500
A141: 131. | B141: 33519855166 | C141: Turistička naklada d.o.o. | D141: Slikovnica "Hrvatska za djecu" - Akcija darujmo prvašićima | E141: 2105 | H141: 2437.7 | I141: 2437.7
A142: 132. | B142: 21723473245 | C142: OPG Gršković Jasminka | D142: Poklon paket - klub 100 darivatelja krvi GDCK | E142: 2105 | H142: 280 | I142: 280
A143: 133. | B143: 78947734649 | C143: Obrt za dnevnu skrb djece "Čarobna šuma" | D143: Sufinanciranje troškova boravka djece | E143: 1216 | H143: 13148.15 | I143: 13148.15
A144: 134. | B144: 61775421116 | C144: Bubamara, obrt, vl. Nathalie Žic | D144: Sufinanciranje troškova boravka djece | E144: 1216 | H144: 53055.72 | I144: 53055.72
A145: 135. | B145: 18452601525 | C145: Dječji vrtić Katarina Frankopan | D145: Sufinanciranje troškova boravka djece | E145: 1216 | H145: 14831 | I145: 14831
A146: 136. | B146: 43930583296 | C146: Dječji vrtić Sv. Mala Terezija | D146: Sufinanciranje troškova boravka djece | E146: 1216 | H146: 18975 | I146: 18975
A147: 137. | C147: Stipendisti i sportaši grada Krka | D147: Novčane nagrade (stipendije) i nagrade sportašima | E147: 1215.3 | H147: 8100 | I147: 8100
D148: UKUPNO: | F148: =SUM(F119:F147) -> 0 | G148: =SUM(G119:G147) -> 0 | H148: 341307.16 | I148: 341307.16
D153: REKAPITULACIJA
D154: NAZIV PROGRAMA | E154: POZICIJA PRORAČUNA 2020 | F154: PLANIRANO PREMA PROGRAMU | G154: OSTVARENO PREMA PROGRAMU * | H154: RAZLIKA (ISPLATE IZ REZERVE PROGRAMA I OSTALIH PRORAČUNSKIH POZICIJA)*** | I154: UKUPNO OSTVARENO - UDRUGE KOJE SU U PROGRAMIMA **
D155: 1. | E155: 2. | F155: 3. | G155: 4. | H155: 5. | I155: 6.
D156: 1. a) UDRUGAMA PREMA PROGRAMIMA JAVNIH POTREBA I POLITIČKIM STRANKAMA
D157: Program za socijalno-humanitarne udruge, društva i ustanove Grada Krka | E157: 1218 | F157: =SUM(F5:F24) -> 141000 | G157: =SUM(G5:G24) -> 123728.92 | H157: =I157-G157 -> 7500 | I157: =SUM(I5:I24) -> 131228.92
D158: Program sporta | E158: 1217 | F158: =SUM(F25:F47) -> 561328.97 | G158: =SUM(G25:G47) -> 556037.77 | H158: =I158-G158 -> 40905 | I158: =SUM(I25:I47) -> 596942.77
D159: Program javnih potreba u kulturi | E159: 1260 | F159: =SUM(F48:F65) -> 281120.1 | G159: =SUM(G48:G65) -> 249335.05 | H159: 30000 | I159: =SUM(I48:I65) -> 279335.05
D160: Program javnih potreba u tehničkoj kulturi | E160: 1222 | F160: =SUM(F66:F73) -> 80000 | G160: =SUM(G66:G73) -> 77705.25 | H160: 4000 | I160: =SUM(I66:I73) -> 81705.25
D161: Program javnih potreba u poljoprivredi | E161: 2115 | F161: =SUM(F74:F82) -> 70900 | G161: =SUM(G74:G82) -> 70900 | H161: 0 | I161: =SUM(I74:I82) -> 70900
D162: Odluka o sredstvima za političke stranke Grada Krka | E162: 2104 | F162: =SUM(F83:F90) -> 53200 | G162: =SUM(G83:G90) -> 53200 | H162: 0 | I162: =SUM(I83:I90) -> 53200
D163: Građanske inicijative | E163: 1223 | F163: =SUM(F91:F95) -> 22000 | G163: =SUM(G91:G95) -> 21250 | H163: 14666.43 | I163: =SUM(I91:I95) -> 35916.43
D164: UKUPNO PROGRAMI JAVNIH POTREBA I POL STR.: | F164: =F157+F158+F159+F160+F161+F162+F163 -> 1209549.07 | G164: =G157+G158+G159+G160+G161+G162+G163 -> 1152156.99 | H164: =H157+H158+H159+H160+H161+H162+H163 -> 97071.43 | I164: =I157+I158+I159+I160+I161+I162+I163 -> 1249228.42
D166: b) ISPLATE DRUGIM NEPROFITNIM ORG.
D167: Isplate drugim neprofitnim org, ustanovama, izvan programa jav.pot. | F167: =SUM(F97:F112) -> 1703887.78 | G167: =SUM(G97:G112) -> 1682551.96 | H167: =SUM(H97:H112) -> 133754.48 | I167: =SUM(I97:I112) -> 1816306.44
D169: UKUPNO 1 a+ b ISPLATE UDRUGAMA I NEPROFITNIM ORG. | F169: =F164+F167 -> 2913436.85 | G169: =G164+G167 -> 2834708.95 | H169: 230825.91 | I169: 3065534.86
D171: 2. OSTALO
D172: ****Ostalo - izvan programa-manifestacije-pokroviteljstva-ugovori | F172: =F148 -> 0 | G172: =G148 -> 0 | H172: =H148 -> 341307.16 | I172: =I148 -> 341307.16
D173: SVEUKUPNO (1+2): | F173: =F169+F172 -> 2913436.85 | G173: =G169+G172 -> 2834708.95 | H173: =H169+H172 -> 572133.07 | I173: =I169+I172 -> 3406842.02
D175: *U koloni 4. Ostvareno prema Programu javnih potreba i za pol.stranke prikazana su sredstva doznačena udrugama prema programu javnih potreba i zaključenim ugovorima ili odluci (pol.str.)
D176: ** U koloni 5. Ukupno ostvareno - Udruge koje su u programima prikazana su ukupno isplaćena sredstva udrugama
D177: *** U koloni 6. prikazane su isplate iz rezerve programa i ostalih proračunskih pozicija
D178: **** U retku Ostalo prikazana su sredstva isplaćena na temelju ugovora sklopljenih za posebne namjene odnosno zaključaka gradonačelnika
D180: Ukupno knjiženo na kontima 38 donacije u iznosu od 3.406.842,02 kn i to konta 381 tekuće donacije 1.965.675,24 kn i konta 382 kapitalne donacije 1.441.166,78 kn, od čega je u tablici pod 1. (a+b )ukupno 3.065.534,86 kn plaćeno udrugama i političkim strankama i drugom neprofitnom sektoru, a u tablici pod b) OSTALO 341.307,16 kn plaćeno prema izdanom računu (pokloni djeci za sv. Nikolu, sufinanciranje izdavaštva i boravka djece u vrtićima, proslave i pokroviteljstva) nagrade sportašima i sl. prema odluci Gradonačelnika, sporazumu, ugovoru
